Workbook

Sheet Cover Page
D1: Add company logo
N2: Version 20.6
B8: Add photo
N13: Notes:
N14: This template may require adjustments by individual operators to meet specific reporting requirements as defined in the site Permit(s)
B29: Annual Performance Report 2021
B31: Permit EPR/NP3739PD
B33: The Coventry And Solihull Waste Disposal Company Ltd
B35: CSWDC
B37: CSWDC
B39: Year: | C39: 2020
B41: Address: | C41: Bar Road, Coventry, CV3 4AN
B43: Tel: | C43: (0)2476507400
B45: Email: | C45: info@cswdc.co.uk
B47: Prepared by: | C47: M Schilling | F47: Position: | G47: EH&S Advisor
B49: Approved by: | C49: E Price | F49: Position: | G49: CP Manager
B51: Version: | C51: 1
B53: Issue Date: | C53: 2021-01-31

Sheet Contents
A1: =+'Cover Page'!$B$29 -> Annual Performance Report 2021 | E1: =+'Cover Page'!$B$33 -> The Coventry And Solihull Waste Disposal Company Ltd
A3: Contents | K3: Notes:
A4: Section | B4: Subject | H4: Page | K4: Section references and Page nos. to be inserted
B5: Facility Information | K5: Sections and Subjects may require adjustment by individual operators to meet specific reporting requirements as defined in the sites Permit(s)
B6: Operational Summary
B7: Operational Data
B8: Performance Form 1
B9: Energy Form 1
B10: Permit Compliance
B11: Improvements
B12: Public Liasion
B13: Residue Quality - Optional
B14: Emissions to Water
B15: Emissions to Air (periodically monitored)
B16: Emissions to Air (continuously monitored)
B17: Hydrogen Chloride emissions
B18: Sulphur Dioxdie emsissions
B19: Oxides of Notrigen emissions
B20: Total Organic Carbon emissions
B21: Particulate Matter emissions
B22: Carbon Monoxide emissions
B23: Ammonia emissions
A26: Version Control
A27: Section | B27: Information | H27: Date
B28: M Schilling - Data entry and compilation of report for submission to EA | H28: 2021-01-31
A34: Distribution
A35: Copy | B35: Name, Role | H35: No.
A44: This report is required under the Industrial Emissions Directive’s Article 55(2) requirements on reporting and public information on waste incineration plants and co-incineration plants, which require the operator to produce an annual report on the functioning and monitoring of the plant and make it available to the public.

Sheet Facility Info
A1: =+'Cover Page'!$B$29 -> Annual Performance Report 2021 | E1: =+'Cover Page'!$B$33 -> The Coventry And Solihull Waste Disposal Company Ltd
A3: Plant Description and Design | K3: Notes:
A5: The Waste to Energy plant, which is located at Bar Road in Coventry, processes Municipal Household waste arising in the City of Coventry and the neighbouring borough of Solihull. Municipal household waste from other nearby local authorities is also processed at the plant. The plant is operated by The Coventry and Solihull Waste Disposal Company Ltd. The main activity at the installation is thermal treatment of municipal waste and recovery of energy, in the form of heat which is converted to electricity for export to the grid. The installation also has the capability to export heat in the form of either High or Low Pressure steam to a district heating scheme operated by Engie UK. A limited amount of hazardous waste, containing less than 1% halogenated organic substances (as chlorine), is also burned with the municipal waste. The installation includes waste receipt and storage, steam generation boilers, abatement of the exhaust gas, on-site storage of residues and all systems for controlling and monitoring combustion operation. The steam produced is used to drive 2 steam turbine driven generators. The plant design is capable of processing approximately 315,000 tonnes of waste per annum/36 tonnes per hour in three combustion units (12 tonne per unit). The heat produced is used to generate 17.7MW of electricity and up to 16MW heat energy. Refuse collection vehicles enter the reception hall and deposit their waste into a storage bunker. The material is then loaded by crane into each of the combustion units via feed hoppers from the storage bunker. After entering the combustion chamber via the refuse feed ram the material is allowed to fall onto the grate in a controlled manner. The moving grate mechanisms are used to agitate the waste as it progresses down to the ash discharge. As the waste moves along, pre-heated primary air is introduced from beneath the grate enabling the waste to go through a series of drying and burning areas. Secondary air is introduced from above the grate for combustion control. Auxiliary gas fired burners are located in the combustion chamber both to heat it up on start-up and to maintain the final gas temperature if necessary. The hot gases are maintained at a minimum temperature of 850C for 2 seconds in the combustion chamber before passing to the boiler, economiser and abatement plant. Each combustion unit is equipped with a 3-bank water tube boiler, raising steam at 17 bar and 208C. Economisers are fitted downstream of each combustion unit to pre-heat the incoming feed water. Combustion is controlled with the use of an infrared imaging computer system, which uses fuzzy logic systems to control various parameters of the plant, ensuring improved efficiency and emission performance when compared to fully manual control. Each combustion unit is provided with its own gas cleaning and monitoring equipment. Gas cleaning comprises activated carbon injection, then dry scrubbing with hydrated lime. The gases pass through bag filters to remove particulates prior to discharge to atmosphere via a single 92m stack. NOx control is achieved by Selective Non Catalytic Reduction (SNCR) using ammonium hydroxide injection. Emissions from the stack are continuously monitored for particulates, carbon monoxide (CO), sulphur dioxide (SO2), hydrogen chloride (HCl), oxygen (O2), nitrogen oxides (NOx) and volatile organic compounds (VOC). There is no discharge of process liquids to controlled waters. Uncontaminated surface and roof waters are discharged to the surface water drainage system, via penstock equipped interceptors. All process waste waters are discharged to foul sewer and these are treated at Finham Sewage Treatment Works, which is operated by Severn Trent Water. Bottom ash from the combustion unit grate is quenched with water. The ferrous fraction from the bottom ash is then removed by magnetic separation. Both fractions are then conveyed to individual concrete storage bunkers prior to removal for reprocessing into aggregates or for recycling back into the steel industry. Air Pollution Control Residues (APCR) from the bag filters are collected continuously and stored in an enclosed silo prior to removal from site for disposal. | K5: Include summary of plant design, design capacity, no. of combustion lines, electrical and heat capacity and any other general information that descibes the facility, its location and purpose
A20: Summary of Operational Processes and Procedures
A22: The plant consists of three separate combustion units that process up to a maximum of 12 tonnes of waste per hour. There are two steam turbine driven electrical generating sets on the plant which convert the heat energy recovered from the combustion process into electricity. The generating sets are designated as G1 and G2. G1 has a capacity of 12.9MW and G2 a capacity of 4.8 MW. The process energy requirements are taken from the electricity generated and the surplus is exported to the grid. The plant also has the capacity to export heat, in the form of high pressure and low pressure steam. The following table categorises the types and permitted maximum amounts of wastes processed. EWC Code Description Amount 19 12 01 paper and cardboard (confidential waste separately collected)  13% 19 12 12 other wastes (including mixtures of materials) from mechanical treatment of wastes other than those mentioned in 19 12 11 20 01 01 paper and cardboard 20 01 08 biodegradable kitchen waste 20 02 01 biodegradable waste 20 03 01 mixed municipal waste  84% 20 03 02 waste from markets 20 03 07 bulky waste 20 03 99 municipal waste not otherwise specified 02 03 04 Wastes unsuitable for consumption or processing 19 12 08 20 01 11 Textiles other 13 07 01* fuel oil and diesel 1% 13 08 99* wastes not otherwise specified 15 02 02* absorbents, filter materials (including oil filters not otherwise specified), wiping cloths, protective clothing contaminated by dangerous substances 15 02 03 absorbents, filter materials, wiping cloths and protective clothing other than those mentioned in 15 02 02 16 07 08* waste containing oil 19 12 10 Combustible waste (refuse derived fuel) 1% 19 01 99 Wastes not otherwise specified 1% 18 01 04 18 01 06 18 01 07 18 01 09 Healthcare hazardous waste | K22: Include summary of key processes and procedures such as (but not limited to); waste reception, control rooms, grate, bed and bolier, energy & heat generation, cooling systems, residue management, emission controls, health and safety systems, maintenance

Sheet Operational Data
A1: =+'Cover Page'!$B$29 -> Annual Performance Report 2021 | E1: =+'Cover Page'!$B$33 -> The Coventry And Solihull Waste Disposal Company Ltd
A3: Operational Data | K3: Notes:
A4: Plant Size | B4: 315000 | D4: tonnes pa | E4: 18 | F4: MWth | G4: 77 | H4: MWt | K4: * - RDF to include SRF
A5: No. of combustion lines | B5: 3 | D5: No. of Turbines: | F5: 2 | K5: ** - CHP plants only
K6: 2020 updates include; heat in MWh, water in Litres, NCV in MJ/kg
A7: Waste types received | B7: Unit | C7: Q1 | D7: Q2 | E7: Q3 | F7: Q4 | G7: Year Total | H7: %
A8: Household / Local Authority | B8: tonnes | C8: 75492.6 | D8: 80376.4 | E8: 76024.4 | F8: 77331 | G8: =SUM(C8:F8) -> 309224.4 | H8: =IF(G8>0,G8/$G$18,"-") -> 0.9870909418 | K8: Availabiity Definition: 'the availability of a line is to be calculated by the number of hours the line reported Continuously Monitored emission levels to the Regulator through the calendar year divided by the total number of hours in that year. The overall plant availability is calculated as the Mean of all lines in the plant. For clarity this includes periods of Other Than Normal Operating Conditions (OTNOC) and abnormal operation.' Rationale: The primary function of an Energy from Waste facility is the disposal of waste. It follows therefore that the availability of a plant is determined by the period of time a facility spends undertaking this activity.
A9: Commercial & Industrial | G9: =SUM(C9:F9) -> 0 | H9: -
A10: Hazardous | C10: 132 | D10: 70 | E10: 87 | F10: 108.7 | G10: 397.7 | H10: 0.001269518407
A11: Clinical | G11: 0 | H11: -
A12: Waste wood (biomass) | G12: 0 | H12: -
A13: Refuse Derived Fuel * - H'hold/LA | G13: =SUM(C13:F13) -> 0 | H13: -
A14: Refuse Derived Fuel * - C&I | G14: 0 | H14: -
A15: Paper Cardboard | C15: 0 | D15: 0 | E15: 1 | F15: 0 | G15: =SUM(C15:F15) -> 1 | H15: =IF(G15>0,G15/$G$18,"-") -> 3.192150884e-06
A16: HWRC Waste Suitable for EfW | C16: 1335 | D16: 525 | E16: 986 | F16: 799.3 | G16: =SUM(C16:F16) -> 3645.3 | H16: =IF(G16>0,G16/$G$18,"-") -> 0.01163634762
A17: Other [Please specify]
A18: Total waste received | C18: =SUM(C8:C17) -> 76959.6 | D18: =SUM(D8:D17) -> 80971.4 | E18: =SUM(E8:E17) -> 77098.4 | F18: =SUM(F8:F17) -> 78239 | G18: =SUM(G8:G17) -> 313268.4 | H18: 1
A19: Rejected Waste | G19: =SUM(C19:F19) -> 0 | H19: =IF(G19>0,G19/$G$18,"-") -> -
A20: Unprocessed waste transferred out | G20: =SUM(C20:F20) -> 0 | H20: =IF(G20>0,G20/$G$18,"-") -> -
A21: Total waste combusted | C21: =C18-SUM(C19:C20) -> 76959.6 | D21: =D18-SUM(D19:D20) -> 80971.4 | E21: 77098.4 | F21: 78239 | G21: =SUM(C21:F21) -> 313268.4 | H21: =IF(G21>0,G21/$G$18,"-") -> 1
A23: Energy Useage / Export | B23: Unit | C23: Q1 | D23: Q2 | E23: Q3 | F23: Q4 | G23: Year Total | H23: KWh/te
A24: Power Generated | B24: MWh | C24: 33400 | D24: 35302 | E24: 33824 | F24: 33458 | G24: =SUM(C24:F24) -> 135984 | H24: =IF(G24>0,G24*1000/$G$21,"-") -> 434.0814458
A25: Power Exported | C25: 27730 | D25: 29550 | E25: 28101 | F25: 27671 | G25: =SUM(C25:F25) -> 113052 | H25: =IF(G25>0,G25*1000/$G$21,"-") -> 360.8790417
A26: Power Used on site | C26: 5686 | D26: 5751 | E26: 5789 | F26: 5862 | G26: =SUM(C26:F26) -> 23088 | H26: =IF(G26>0,G26*1000/$G$21,"-") -> 73.70037961
A27: Power Imported | C27: 58.9 | D27: 81.3 | E27: 152 | F27: 23 | G27: 315.2 | H27: =IF(G27>0,G27*1000/$G$21,"-") -> 1.006165959
A28: Parasitic Load | B28: % | C28: =IF(C24>0,1-C25/(C24+C27),"-") -> 0.1712220067 | D28: =IF(D24>0,1-D25/(D24+D27),"-") -> 0.1648602589 | E28: =IF(E24>0,1-E25/(E24+E27),"-") -> 0.1729161761 | F28: =IF(F24>0,1-F25/(F24+F27),"-") -> 0.1735312565 | G28: =IF(G24>0,1-G25/(G24+G27),"-") -> 0.170560062
A29: Thermal Energy Produced ** | B29: MWh | C29: 2481 | D29: 213 | E29: 2153 | F29: 42.5 | G29: =SUM(C29:F29) -> 4889.5 | H29: =IF(G29>0,G29*1000/$G$21,"-") -> 15.60802175
A30: Thermal Energy Exported ** | C30: 2213 | D30: 190 | E30: 1921 | F30: 3751 | G30: 8075 | H30: =IF(G30>0,G30*1000/$G$21,"-") -> 25.77661839
A31: R1 value | G31: Design / Operational / n/a
A33: Waste Disposal & Recovery | B33: Unit | C33: Q1 | D33: Q2 | E33: Q3 | F33: Q4 | G33: Year Total | H33: % inputs
A34: APC Residues - produced | B34: tonnes | C34: 3531 | D34: 3255 | E34: 3069 | F34: 3050 | G34: =SUM(C34:F34) -> 12905 | H34: =IF(G34>0,G34/$G$21,"-") -> 0.04119470716
A35: IBA - produced | C35: 11404 | D35: 13217 | E35: 11986 | F35: 11534 | G35: 48141 | H35: =IF(G35>0,G35/$G$21,"-") -> 0.1536733357
A36: Metals recycling | C36: 2079 | D36: 2198 | E36: 2081 | F36: 2092 | G36: =SUM(C36:F36) -> 8450 | H36: 0.02697367497
A37: Other | C37: 0 | D37: 0 | E37: 0 | F37: 0 | G37: =SUM(C37:F37) -> 0 | H37: -
A38: Other | C38: 0 | D38: 0 | E38: 0 | F38: 0 | G38: 0 | H38: -
A39: Other | C39: 0 | D39: 0 | E39: 0 | F39: 0 | G39: 0 | H39: -
A41: Raw Material Usage | B41: Unit | C41: Q1 | D41: Q2 | E41: Q3 | F41: Q4 | G41: Year Total | H41: kg or Ltr /te
A42: Mains Water | B42: ltrs | C42: 49156 | D42: 18679 | E42: 21489 | F42: 23016 | G42: =SUM(C42:F42) -> 112340 | H42: =IF(G42>0,G42/$G$21,"-") -> 0.3586062303
A43: Other Water | B43: ltrs | C43: 70419 | D43: 108274 | E43: 103413 | F43: 99063 | G43: 381169 | H43: =IF(G43>0,G43/$G$21,"-") -> 1.21674896
A44: Ammonia | B44: kgs | C44: 264000 | D44: 245000 | E44: 244000 | F44: 216 | G44: 753216 | H44: 2.40437912
A45: Urea | B45: kgs | C45: 0 | D45: 0 | E45: 0 | F45: 0 | G45: =SUM(C45:F45) -> 0 | H45: -
A46: Activated Carbon | B46: kgs | C46: 17890 | D46: 21620 | E46: 20190 | F46: 17200 | G46: 76900 | H46: 0.245476403
A47: Lime / hydrated lime | B47: te | C47: 1455 | D47: 1241 | E47: 1270 | F47: 1137 | G47: 5103 | H47: 0.01628954596
A48: Fuel oil | B48: ltrs | C48: 1037 | D48: 8440 | E48: 9096 | F48: 9748 | G48: 28321 | H48: 0.09040490519
A49: Gas | B49: cf | C49: 760800 | D49: 508600 | E49: 944500 | F49: 639900 | G49: 2853800
A50: Other | C50: 0 | D50: 0 | E50: 0 | F50: 0 | G50: 0
A52: Summary | B52: Line/Unit | C52: Q1 | D52: Q2 | E52: Q3 | F52: Q4 | G52: Year Total | J52: Hrs in year
A53: Availability of waste combustion by line, hrs | B53: 1 | C53: 1858 | D53: 2122 | E53: 1921 | F53: 2163 | G53: =SUM(C53:F53) -> 8064 | H53: 0.92 | J53: 8760
B54: 2 | C54: 1925 | D54: 2119 | E54: 2003 | F54: 2106 | G54: 8153 | H54: 0.93
B55: 3 | C55: 2169 | D55: 1997 | E55: 2180 | F55: 1756 | G55: 8102 | H55: 0.925
B56: 4 | G56: 0 | H56: x %
B57: 5 | G57: =SUM(C57:F57) -> 0 | H57: x %
A58: Overall Availability, mean avg. of all lines, hrs | C58: 91 | D58: 95 | E58: 93 | F58: 92 | G58: =AVERAGE(G53:G57) -> 4863.8 | H58: 0.93
A59: Hours of turbine operations, hrs | B59: 1 | C59: 2165 | D59: 2142 | E59: 2127 | F59: 2202 | G59: 8636 | H59: x %
A60: Hours of turbine operations, hrs | B60: 2 | C60: 1848 | D60: 2156 | E60: 2058 | F60: 2205 | G60: 8267 | H60: x %
A61: Hours of heat / steam export | C61: 1848 | D61: 2156 | E61: 2058 | F61: 2205 | G61: 8267 | H61: =IF(B61>0,G60/J53,"n/a") -> n/a
A62: Net Calorific Value of waste | B62: MJ/kg | C62: 7.79 | D62: 7.96 | E62: 8.44 | F62: 8.56 | G62: 32.75 | H62: -
A63: Abnormal Events | B63: qty. | C63: 0 | D63: 0 | E63: 0 | F63: 0 | G63: 0 | H63: =IF(G63>0,"yes","no") -> no
A64: Abnormal operation | B64: hours | C64: 0 | D64: 0 | E64: 0 | F64: 0 | G64: 0 | H64: =+(G64)/J53 -> 0
A65: Permit Breaches | B65: qty. | C65: 0 | D65: 0 | E65: 0 | F65: 1 | G65: 1 | H65: =IF(G65>0,"yes","no") -> yes

Sheet Operational Summary
A1: =+'Cover Page'!$B$29 -> Annual Performance Report 2021 | E1: =+'Cover Page'!$B$33 -> The Coventry And Solihull Waste Disposal Company Ltd
A3: Summary of Plant Operations and Maintenance during the reporting year | K3: Notes:
A5: There were two minor maintenance outages on unit 1 and unit 3, with one minor outage on unit 3 early in the year followed by a major outage in November which included grate replacement and bag filter change. Unit 2 statutory inspection was carried out in July. 25 explosive cleaning visits were undertaken. Emission monitoring was undertaken in June and October by Element. The cooling toweres were serviced in April and November | K5: Include summary of key operational and/or mainteanance activity undertaken in the year, such as any major component upgrades and/or replacements
A29: Summary of Residue Handling for the reporting year
A31: Incinerator bottom ash is separated and stored on site for collection by aggregate HGVs, which as loaded by crane before transporting the ash to a processing site which is operated by a third party. All metals metals are left mixed with the IBA and removed from site for processing by a third party (Johnsons Aggregates, Derby), and the metal is now separated by them on their premises. APCr is conveyed by the FGT system into storage silos. From there it is deposited into tankers (Lomas) for transortation to a third party processor (Augean). | K31: Include in here a summary of residue handling regimes and destinations

Sheet Perf. Form 1
A1: =+'Cover Page'!C39 -> 2020 | B1: Annual Reporting Performance Form 1
A3: =+'Cover Page'!B31 -> Permit EPR/NP3739PD | F3: Operator: | G3: =+'Cover Page'!B37:I37 -> 0
A4: Facility: | B4: =+'Cover Page'!B33:I33 -> The Coventry And Solihull Waste Disposal Company Ltd | F4: Form: | G4: Performance 1
A6: Reporting Period from: | D6: 2020-01-01 | F6: to: | G6: 2020-12-31
A8: =+A1 -> 2020 | B8: Annual Reporting of Waste Disposal and Recovery
A9: Waste Description | C9: Disposal Route(s) | E9: Disposal Tonnes | G9: Recovery Tonnes | I9: % / tonne of waste incinerated
A10: 1) Hazardous Wastes
A11: APC Residues | C11: Pretreament and landfill | I11: =IF((E11+G11)>0,(E11+G11)/'Operational Data'!$G$21, "-") -> -
A12: IBA | C12: N/A | E12: 12905 | I12: =IF((E12+G12)>0,(E12+G12)/'Operational Data'!$G$21, "-") -> 0.04119470716
I13: =IF((E13+G13)>0,(E13+G13)/'Operational Data'!$G$21, "-") -> -
I14: =IF((E14+G14)>0,(E14+G14)/'Operational Data'!$G$21, "-") -> -
A15: Total Hazardous Waste | E15: =SUM(E11:F14) -> 12905 | G15: =SUM(G11:H14) -> 0 | I15: =IF((E15+G15)>0,(E15+G15)/'Operational Data'!$G$21, "-") -> 0.04119470716
A17: 2) Non-Hazardous Wastes
A18: IBA | C18: Recovery | G18: 48141 | I18: =IF((E18+G18)>0,(E18+G18)/'Operational Data'!$G$21, "-") -> 0.1536733357
A19: Ferrous Metal | C19: Recovery | G19: 8450 | I19: =IF((E19+G19)>0,(E19+G19)/'Operational Data'!$G$21, "-") -> 0.02697367497
A20: Process Water | C20: Disposal to foul sewer | E20: 123312 | I20: =IF((E20+G20)>0,(E20+G20)/'Operational Data'!$G$21, "-") -> 0.3936305098
I21: =IF((E21+G21)>0,(E21+G21)/'Operational Data'!$G$21, "-") -> -
I22: =IF((E22+G22)>0,(E22+G22)/'Operational Data'!$G$21, "-") -> -
A23: Total Non-Hazardous Waste | E23: =SUM(E18:F22) -> 123312 | G23: =SUM(G18:H22) -> 56591 | I23: =IF((E23+G23)>0,(E23+G23)/'Operational Data'!$G$21, "-") -> 0.5742775205
A24: TOTAL WASTE | E24: =+E23+E15 -> 136217 | G24: =+G23+G15 -> 56591 | I24: =IF((E24+G24)>0,(E24+G24)/'Operational Data'!$G$21, "-") -> 0.6154722276
A26: Operator’s comments :
A31: =+A1 -> 2020 | B31: Annual Reporting of Water and Other Raw Material Usage
A32: Raw Material | E32: Usage | G32: Unit | H32: Specific Useage | J32: Unit
A33: Mains Water | E33: =+'Operational Data'!G42 -> 112340 | G33: m3 | H33: =IF(E33>0,E33/'Operational Data'!$G$21,"-") -> 0.3586062303 | J33: m3/te
A34: Total Water | E34: =+'Operational Data'!G43+'Operational Data'!G42 -> 493509 | G34: m3 | H34: =IF(E34>0,E34/'Operational Data'!$G$21,"-") -> 1.575355191 | J34: m3/te
A35: Urea / Ammonia | E35: =+'Operational Data'!G44 -> 753216 | G35: kg | H35: =IF(E35>0,E35/'Operational Data'!$G$21,"-") -> 2.40437912 | J35: kg/te
A36: Activated Carbon | E36: =+'Operational Data'!G46 -> 76900 | G36: kg | H36: =IF(E36>0,E36/'Operational Data'!$G$21,"-") -> 0.245476403 | J36: kg/te
A37: Lime / hydrated lime / Sodium Bicarb. | E37: =+'Operational Data'!G47 -> 5103 | G37: kg | H37: =IF(E37>0,E37/'Operational Data'!$G$21,"-") -> 0.01628954596 | J37: kg/te
A39: Operator’s comments :
A43: =+A31 -> 2020 | B43: Annual Reporting of other performance indicators
A44: Parameter | C44: Results by Line
C45: A1 | D45: A2 | E45: A3 | F45: A4 | G45: A5 | I45: Turbine 1 | J45: Turbine 2
A46: Operating hours for the year, hours | C46: 8063 | D46: 8153 | E46: 8102 | I46: 8636 | J46: 8267
A47: Number of periods of abnormal operation, qty. | C47: 0 | D47: 0 | E47: 0 | I47: 0 | J47: 0
A48: Cumulative hours of abnormal operation for this year, hours | C48: 0 | D48: 0 | E48: 0 | I48: 0 | J48: 0
A50: Operator’s comments :
A54: Signed: | G54: Date: | H54: 2021-01-28

Sheet Energy Form 1
A1: =+'Cover Page'!C39 -> 2020 | B1: Annual Reporting of Energy Usage/Export
A3: =+'Cover Page'!B31 -> Permit EPR/NP3739PD | F3: Operator: | G3: =+'Cover Page'!B37:I37 -> 0
A5: Facility: | B5: =+'Cover Page'!B33:I33 -> The Coventry And Solihull Waste Disposal Company Ltd | F5: Form: | G5: Energy 1
A7: Reporting Period from: | D7: =+'Perf. Form 1'!D6:E6 -> 2020-01-01 | F7: to: | G7: =+'Perf. Form 1'!G6:H6 -> 2020-12-31
A9: Energy Source | D9: Energy Usage | F9: Unit | G9: Specific Useage (KWh/tonne incinerated
A10: Electricity Produced | D10: =+'Operational Data'!G24 -> 135984 | F10: MWh | G10: =+'Operational Data'!H24 -> 434.0814458
A11: Electricity Imported | D11: =+'Operational Data'!G27 -> 315.2 | F11: MWh | G11: =+'Operational Data'!H27 -> 1.006165959
A12: Electricity Exported | D12: =+'Operational Data'!G25 -> 113052 | F12: MWh | G12: =+'Operational Data'!H25 -> 360.8790417
A13: Gas Oil | D13: 37660 | F13: tonnes
A14: Steam/hot water exported | D14: =+'Operational Data'!G30 -> 8075 | F14: GWh | G14: =+'Operational Data'!H30 -> 25.77661839
A18: Operator’s comments :
A29: Signed: | G29: Date: | H29: 2021-01-28

Sheet Permit Compliance
A1: =+'Cover Page'!$B$29 -> Annual Performance Report 2021 | E1: =+'Cover Page'!$B$33 -> The Coventry And Solihull Waste Disposal Company Ltd
A3: Summary of Permit Compliance
A5: Compliance with permit limits for continuously monitored pollutants
A7: The plant met its emission limits as shown in the table below:
A8: Substance | C8: Percentage time compliant during operation | L8: Notes:
C9: Half-hourly limit | F9: Daily limit | L9: Report to 2 decimal places, i.e. xx.xx% Please provide a brief summary of each notification or non-compliance in the table (rather than just referring to notifications that were sent to the Regulator).
A10: Particulates | C10: 1 | F10: 1
A11: Oxides of nitrogen | C11: 1 | F11: 1
A12: Sulphur dioxide | C12: 1 | F12: 1
A13: Carbon monoxide | C13: 100% 95% of 10-min averages | F13: 1
A14: Total organic carbon | C14: 1 | F14: 1
A15: Hydrogen chloride | C15: 1 | F15: 1
A16: Hydrogen fluoride | C16: 1 | F16: 1
C17: 1 | F17: 1
A19: Summary of any notifications or non-compliances under the permit
A20: Date | B20: Summary of notification or non-compliance [including Line/Reference] | E20: Reason | H20: Measures taken to prevent reoccurrence
A21: 2020-12-25 | B21: Plant control failure caused FGT by-pass damper to open | E21: Electical component failure | H21: Planned timed replacement of component
A27: Summary of any complaints received and actions to taken to resolve them.
A28: Date | B28: Summary of complaint [including Line/Reference] | E28: Reason * | H28: Measures taken to prevent reoccurrence
A29: 2020-08-15 | B29: Odour complaint from local resident, bunker odour in warm weather | E29: Maintenance work on roof vents | H29: Improved planning of roof vent maintenance
E34: * including whether substantiated by the operator or the EA

Sheet Improvements
A1: =+'Cover Page'!$B$29 -> Annual Performance Report 2021 | E1: =+'Cover Page'!$B$33 -> The Coventry And Solihull Waste Disposal Company Ltd
A3: Summary of Plant Improvements
A5: Summary of any efficiency improvements that have been completed within the year.
A6: Further installation of low energy lighting
A16: Summary of any permit improvement conditions that have been completed within the year and the resulting environmental benefits.
A17: n/a
A27: Summary of any changes to the plant or operating techniques which required a variation to the permit and a summary of the resulting environmental impact.
A28: n/a
A38: Summary of any other improvements made to the plant or planned to be made and a summary of the resulting environmental benefits.
A39: Installation of automated interceptor penstock valves Development of a carbon footprint reduction policy, improved water level control to salt saturators to reduce water use, Removal of magnetic separator, Reductions in external plant noise from plant vacuum system

Sheet Public Liasion
A1: =+'Cover Page'!$B$29 -> Annual Performance Report 2021 | E1: =+'Cover Page'!$B$33 -> The Coventry And Solihull Waste Disposal Company Ltd
A3: Details of Public & Stakeholder Liasion
A5: Summary of events held during the reporting year.
A6: Date | C6: Description
A7: 28th January | C7: U£A south Solihul, site visit that was well received by the visiting party
C9: No other site visits were made due to Pandemic
A16: List of events planned for next year
A17: Date | C17: Description
C18: Unsure of we can recommence site visits - Pandemic dependent
A29: If you wish to be involved in the public liasion programme, please contact _________________

Sheet Residue Quality
A1: =+'Cover Page'!$B$29 -> Annual Performance Report 2021 | E1: =+'Cover Page'!$B$33 -> The Coventry And Solihull Waste Disposal Company Ltd
A3: Residue Quality Monitoring Requirements
A5: Summary of monitoring undertaken and compliance
A6: Monthly sampling of IBA for metails, LOI (6/yr), ph, moisture, alcalinity reserve, etc, with quarterly dioxin assessment
A8: Quarterly APCr sampling for metals and dioxins
A13: Commentary on any specific events
A14: Date & Event | C14: Description
A27: Residue Quality Monitoring Results
A28: Parameter (unit) | C28: Limit | D28: Normal Operation
D29: Bottom ash | F29: APC Residues
A30: Loss on Ignition (average %) | C30: <5% | D30: 0.0332
A31: Total Organic Carbon (average %) | C31: <3% | D31: n/a
A32: No. of Assessments Undertaken | C32: --- | D32: 12 | F32: 4
A33: No. of Hazardous Results | C33: --- | D33: 0
A35: Comments :

Sheet Water
A1: =+'Cover Page'!$B$29 -> Annual Performance Report 2021 | E1: =+'Cover Page'!$B$33 -> The Coventry And Solihull Waste Disposal Company Ltd
A3: Emissions to Water
A5: Summary of monitoring undertaken and compliance
A6: PH monitoring taken from IBA quench water on a weekly basis
A8: Effluent content monitored by STW
A13: Commentary on any specific events
A14: Date & Event | C14: Description
A22: Emissions to Water / Sewer
A23: Parameter | D23: Monitoring Frequency | G23: Limit | H23: Target | I23: Max. | J23: Average
A24: PH | D24: Weekly | G24: 12 | H24: 9 | I24: 11.4 | J24: 9.5

Sheet Air (periodic)
A1: =+'Cover Page'!$B$29 -> Annual Performance Report 2021 | E1: =+'Cover Page'!$B$33 -> The Coventry And Solihull Waste Disposal Company Ltd
A3: Emissions to Air (periodically monitored)
A5: Summary of monitoring undertaken, standards used and compliance | M5: Notes:
M6: Template may require adjustment for any bespoke monitoring requirements of permit.
A9: Results of emissions to air that are periodically monitored
A10: Substance | C10: Ref. Period | D10: Emission Limit Value | F10: Average
F11: A1 | G11: A2 | H11: A3 | I11: A4 | J11: A5
A12: Hydrogen fluoride | C12: 1 hr | D12: 2 mg/m3 | F12: <0.075 | G12: <0.048 | H12: <0.17
A13: Cd and Th and their compounds | C13: 6-8hrs | D13: 0.05 mg/m3 | F13: <0.0017 | G13: <0.001 | H13: <0.0012 | M13: H1 | P13: H2
A14: Hg and its compounds | C14: 6-8hrs | D14: 0.05 mg/m3 | F14: <0.0008 | G14: <0.0005 | H14: <0.0008 | M14: A1 | N14: A2 | O14: A3 | P14: A1 | Q14: A2 | R14: A3
A15: Sb, As, Pb, Cr, Co, Cu, Mn, Ni, V and their compounds | C15: 6-8hrs | D15: 0.5 mg/m3 | F15: 0.033 | G15: 0.0465 | H15: 0.04 | M15: 0.09 | N15: <0.05 | O15: 0.31 | P15: <0.06 | Q15: <0.04 | R15: <0.03
A16: Dioxins & Furans (I-TEQ) | C16: 6-8hrs | D16: 0.1 ng/m3 | F16: 0.00155 | G16: 0.00185 | H16: 0.00595 | M16: 0.002 | N16: <0.001 | O16: <0.001 | P16: <0.0014 | Q16: <0.001 | R16: 0.0014
A17: PCBs (WHO-TEQ Humans / Mammals) | C17: 6-8hrs | D17: None set ng/m3 | F17: 0.0003535 | G17: 0.0004035 | H17: 0.000825 | M17: 0.001 | N17: <0.0005 | O17: 0.001 | P17: <0.0005 | Q17: <0.0004 | R17: <0.0005
A18: PCBs (WHO-TEQ Fish) | C18: 6-8hrs | D18: None set ng/m3 | F18: 1.8e-05 | G18: 1.35e-05 | H18: 5e-05 | M18: 0.033 | N18: 0.013 | O18: 0.054 | P18: 0.033 | Q18: 0.08 | R18: 0.026
A19: PCBs (WHO-TEQ Birds) | C19: 6-8hrs | D19: None set ng/m3 | F19: 0.001146 | G19: 0.001072 | H19: 0.00324 | M19: 0.002 | N19: 0.001 | O19: 0.01 | P19: 0.0011 | Q19: 0.0027 | R19: 0.0019
A20: Dioxins & Furans (WHO-TEQ Humans / Mammals) | C20: 6-8hrs | D20: None set ng/m3 | F20: 0.001 | G20: 0.0018 | H20: 0.00545 | M20: 0.00041 | N20: 0.00034 | O20: 0.00135 | P20: 0.000297 | Q20: 0.000467 | R20: 0.0003
A21: Dioxins & Furans (WHO-TEQ Fish) | C21: 6-8hrs | D21: None set ng/m3 | F21: 0.0016 | G21: 0.002 | H21: 0.00605 | M21: 2e-05 | N21: 2e-06 | O21: 8e-05 | P21: 1.6e-05 | Q21: 2.5e-05 | R21: 2e-05
A22: Dioxins & Furans (WHO-TEQ Birds) | C22: 6-8hrs | D22: None set ng/m3 | F22: 0.0024 | G22: 0.0038 | H22: 0.00955 | M22: 0.0014 | N22: 0.000803 | O22: 0.00528 | P22: 0.000892 | Q22: 0.001341 | R22: 0.0012
A23: Anthanthrene | C23: 6-8hrs | D23: None set µg/m3 | F23: <0.0013 | G23: <0.0013 | H23: <0.0014 | M23: 0.001 | N23: 0.001 | O23: 0.009 | P23: 0.001 | Q23: 0.0026 | R23: 0.0019
A24: Benzo(a)anthracene | C24: 6-8hrs | D24: None set µg/m3 | F24: 0.00155 | G24: <0.0013 | H24: <0.0014 | M24: 0.002 | N24: 0.001 | O24: 0.01 | P24: 0.0012 | Q24: 0.003 | R24: 0.0021
A25: Benzo(a)pyrene | C25: 6-8hrs | D25: None set µg/m3 | F25: <0.0013 | G25: <0.0013 | H25: <0.0014 | M25: 0.003 | N25: 0.002 | O25: 0.015 | P25: 0.0018 | Q25: 0.0056 | R25: 0.0041
A26: Benzo(b)fluoranthene | C26: 6-8hrs | D26: None set µg/m3 | F26: <0.0013 | G26: <0.0013 | H26: <0.0014 | M26: <0.001 | N26: <0.001 | O26: <0.001 | P26: <0.0015 | Q26: <0.0016 | R26: <0.0018
A27: Benzo(b)naptho(2,1-d) thiophene | C27: 6-8hrs | D27: None set µg/m3 | F27: <0.0013 | G27: <0.0013 | H27: <0.0014 | M27: 0.001 | N27: <0.001 | O27: 0.001 | P27: 0.0021 | Q27: <0.0016 | R27: <0.0018
A28: Benzo(c)phenanthrene | C28: 6-8hrs | D28: None set µg/m3 | F28: <0.0014 | G28: <0.0013 | H28: <0.0014 | M28: <0.001 | N28: <0.001 | O28: <0.001 | P28: <0.0015 | Q28: <0.0016 | R28: <0.0018
A29: Benzo(ghi)perylene | C29: 6-8hrs | D29: None set µg/m3 | F29: <0.0013 | G29: <0.0013 | H29: <0.0014 | M29: <0.001 | N29: <0.001 | O29: <0.001 | P29: <0.0015 | Q29: <0.0016 | R29: <0.0018
A30: Benzo(k)fluoranthene | C30: 6-8hrs | D30: None set µg/m3 | F30: <0.0013 | G30: <0.0013 | H30: <0.0014 | M30: <0.001 | N30: <0.001 | O30: 0.002 | P30: <0.0015 | Q30: <0.0016 | R30: <0.0018
A31: Cholanthrene | C31: 6-8hrs | D31: None set µg/m3 | F31: <0.0013 | G31: <0.0013 | H31: <0.0014 | M31: 0.002 | N31: <0.001 | O31: 0.002 | P31: <0.0015 | Q31: <0.0016 | R31: <0.0018
A32: Chrysene | C32: 6-8hrs | D32: None set µg/m3 | F32: 0.0038 | G32: 0.0029 | H32: 0.0028 | M32: <0.001 | N32: <0.001 | O32: <0.001 | P32: <0.0015 | Q32: <0.0016 | R32: <0.0018
A33: Cyclopenta(cd)pyrene | C33: 6-8hrs | D33: None set µg/m3 | F33: <0.0013 | G33: <0.0013 | H33: <0.0014 | M33: <0.001 | N33: <0.001 | O33: <0.001 | P33: <0.0015 | Q33: <0.0016 | R33: <0.0018
A34: Dibenzo(ai)pyrene | C34: 6-8hrs | D34: None set µg/m3 | F34: <0.0013 | G34: <0.0013 | H34: <0.0014 | M34: <0.001 | N34: <0.001 | O34: <0.001 | P34: <0.0015 | Q34: <0.0016 | R34: <0.0018
A35: Dibenzo(ah)anthracene | C35: 6-8hrs | D35: None set µg/m3 | F35: <0.0013 | G35: <0.0013 | H35: <0.0014 | M35: 0.002 | N35: 0.002 | O35: 0.003 | P35: 0.0056 | Q35: 0.0038 | R35: 0.0026
A36: Fluoranthene | C36: 6-8hrs | D36: None set µg/m3 | F36: 0.02165 | G36: 0.0099 | H36: 0.0823 | M36: <0.001 | N36: <0.001 | O36: <0.001 | P36: <0.0015 | Q36: <0.0016 | R36: <0.0018
A37: Indeno(123-cd) pyrene | C37: 6-8hrs | D37: None set µg/m3 | F37: <0.0013 | G37: <0.0013 | H37: <0.0014 | M37: <0.001 | N37: <0.001 | O37: <0.001 | P37: <0.0015 | Q37: <0.0016 | R37: <0.0018
A38: Naphthalene | C38: 6-8hrs | D38: None set µg/m3 | F38: 0.07615 | G38: 0.324 | H38: 0.17 | M38: <0.001 | N38: <0.001 | O38: <0.001 | P38: <0.0015 | Q38: <0.0016 | R38: <0.0018
A39: Comments : | M39: 0.028 | N39: 0.004 | O39: 0.156 | P39: 0.0153 | Q39: 0.0158 | R39: 0.0086
M40: <0.001 | N40: <0.001 | O40: <0.001 | P40: <0.0015 | Q40: <0.0016 | R40: <0.0018
M41: 0.087 | N41: 0.128 | O41: 0.07 | P41: 0.0653 | Q41: 0.52 | R41: 0.27

Sheet Air (CEMS)
A1: =+'Cover Page'!$B$29 -> Annual Performance Report 2021 | I1: =+'Cover Page'!$B$33 -> The Coventry And Solihull Waste Disposal Company Ltd
A3: Emissions to Air (continously monitored)
P4: Notes:
A5: Summary of monitoring undertaken, standards used and compliance | P5: Template may require adjustment for any bespoke monitoring requirements of permit
A6: MIR FT, FID, MCERTS, A1-Cbiss installation, software, servicing and support | P6: Report to 2 decimal places, i.e. xx.xx%
A11: Results of emissions to air that are continuously monitored (maximum and average values for each line)
A12: Substance | B12: Reference Period | C12: Emission Limit Value | D12: A1 | F12: A2 | H12: A3 | J12: A4 | L12: A5
D13: Max. | E13: Avg. | F13: Max. | G13: Avg. | H13: Max. | I13: Avg. | J13: Max. | K13: Avg. | L13: Max. | M13: Avg.
A14: Oxides of nitrogen | B14: Daily mean | C14: 200 mg/m3 | D14: =NOx!O19 -> 198.45 | E14: =NOx!N19 -> 186.1641667 | F14: =NOx!O34 -> 197.2 | G14: =NOx!N34 -> 187.2741667 | H14: =NOx!O49 -> 197.1 | I14: =NOx!N49 -> 184.4366667
B15: ½ hourly mean | C15: 400 mg/m3 | D15: =NOx!M19 -> 330.06 | E15: =NOx!L19 -> 186.3766667 | F15: =NOx!M34 -> 347.72 | G15: =NOx!L34 -> 187.4341667 | H15: =NOx!M49 -> 307.56 | I15: =NOx!L49 -> 184.3641667
A16: Particulates | B16: Daily mean | C16: 10 mg/m3 | D16: =Particulates!O19 -> 7.36 | E16: =Particulates!N19 -> 2.095 | F16: =Particulates!O34 -> 3.19 | G16: =Particulates!N34 -> 0.6775 | H16: =Particulates!O49 -> 5.32 | I16: =Particulates!N49 -> 1.186666667
B17: ½ hourly mean | C17: 30 mg/m3 | D17: =Particulates!M19 -> 18.27 | E17: =Particulates!L19 -> 2.0825 | F17: =Particulates!M34 -> 26.46 | G17: =Particulates!L34 -> 0.685 | H17: =Particulates!M49 -> 11.65 | I17: =Particulates!L49 -> 1.2075
A18: Total Organic Carbon | B18: Daily mean | C18: 10 mg/m3 | D18: =TOC!O19 -> 1.23 | E18: =TOC!N19 -> 0.325 | F18: =TOC!O34 -> 1.58 | G18: =TOC!N34 -> 0.2583333333 | H18: =TOC!O49 -> 0.64 | I18: =TOC!N49 -> 0.1483333333
B19: ½ hourly mean | C19: 20 mg/m3 | D19: =TOC!M19 -> 6.61 | E19: =TOC!L19 -> 0.3208333333 | F19: =TOC!M34 -> 8.9 | G19: =TOC!L34 -> 0.2575 | H19: =TOC!M49 -> 5.79 | I19: =TOC!L49 -> 0.1491666667
A20: Hydrogen chloride | B20: Daily mean | C20: 10 mg/m3 | D20: =HCl!O19 -> 3.24 | E20: =HCl!N19 -> 0.9166666667 | F20: =HCl!O34 -> 2.39 | G20: =HCl!N34 -> 1.1475 | H20: =HCl!O49 -> 3.36 | I20: =HCl!N49 -> 1.076666667
B21: ½ hourly mean | C21: 60 mg/m3 | D21: =HCl!M19 -> 14.38 | E21: =HCl!L19 -> 0.9208333333 | F21: =HCl!M34 -> 7.58 | G21: =HCl!L34 -> 1.150833333 | H21: =HCl!M49 -> 26.41 | I21: =HCl!L49 -> 1.084166667
A22: Sulphur dioxide | B22: Daily mean | C22: 50 mg/m3 | D22: ='SO2'!O19 -> 46.87 | E22: ='SO2'!N19 -> 36.01416667 | F22: ='SO2'!O34 -> 49.49 | G22: ='SO2'!N34 -> 43.23916667 | H22: ='SO2'!O49 -> 47.17 | I22: ='SO2'!N49 -> 36.7275
B23: ½ hourly mean | C23: 200 mg/m3 | D23: ='SO2'!M19 -> 151.83 | E23: ='SO2'!L19 -> 35.83583333 | F23: ='SO2'!M34 -> 189.31 | G23: ='SO2'!L34 -> 43.27666667 | H23: ='SO2'!M49 -> 143.05 | I23: ='SO2'!L49 -> 36.71916667
A24: Carbon monoxide | B24: Daily mean | C24: 50 mg/m3 | D24: ='CO 95% 10 min'!Q19 -> 47.71 | E24: ='CO 95% 10 min'!P19 -> 26.3625 | F24: ='CO 95% 10 min'!Q34 -> 48.01 | G24: ='CO 95% 10 min'!P34 -> 26.42416667 | H24: ='CO 95% 10 min'!Q49 -> 36.05 | I24: ='CO 95% 10 min'!P49 -> 16.7425
B25: ½ hourly mean * | C25: 100 mg/m3 *
B26: 95%ile 10-min avg * | C26: 150 mg/m3 * | D26: ='CO 95% 10 min'!M19 -> 95.72 | E26: ='CO 95% 10 min'!N19 -> 26.3825 | F26: ='CO 95% 10 min'!M34 -> 102 | G26: ='CO 95% 10 min'!N34 -> 26.37083333 | H26: ='CO 95% 10 min'!M49 -> 67.88 | I26: ='CO 95% 10 min'!N49 -> 16.84
A27: Ammonia | B27: Daily mean | C27: No limit set | D27: ='NH3'!O19 -> 16.48 | E27: ='NH3'!N19 -> 5.063333333 | F27: ='NH3'!O34 -> 19.09 | G27: ='NH3'!N34 -> 8.358333333 | H27: ='NH3'!O49 -> 9.49 | I27: ='NH3'!N49 -> 2.845
A28: * = delete or amend as appropriate
A29: Comments :

Sheet HCl
A1: =+'Cover Page'!$B$29 -> Annual Performance Report 2021 | E1: =+'Cover Page'!$B$33 -> The Coventry And Solihull Waste Disposal Company Ltd
A3: Monitoring of Hydrogen Chloride emissions | D3: Whole Installation | G3: See Notes in Cell Q3 | J3: =+A3 -> Monitoring of Hydrogen Chloride emissions | N3: Per Combustion Line | Q3: Notes:
Q4: User to add logic to complete Whole installation, Table A5:G18. From the data in Per Combustion Line, Table J6:O79, subject to No. of lines installed
A5: mg/Nm3 | B5: 1/2 Hourly Reference Periods | E5: Daily Reference Periods
A6: =+'Cover Page'!C39 -> 2020 | B6: 1/2 hourly HCl ELV | C6: Monthly 1/2 hourly mean | D6: Highest 1/2 hourly maximum | E6: Daily HCl ELV | F6: Monthly daily mean | G6: Highest daily maximum | J6: =+A6 -> 2020 | K6: mg/Nm3 | L6: Monthly 1/2 hourly mean | M6: Monthly 1/2 hourly maximum | N6: Monthly daily mean | O6: Monthly daily maximum
A7: Jan | B7: 60 | C7: 1.63 | D7: 18.4 | E7: 10 | F7: 1.61 | G7: 3.36 | J7: A1 | K7: Jan | L7: 2.3 | M7: 14.38 | N7: 2.31 | O7: 3.24
A8: Feb | B8: 60 | C8: 0.98 | D8: 7.62 | E8: 10 | F8: 0.98 | G8: 2.77 | K8: Feb | L8: 1.32 | M8: 6.55 | N8: 1.34 | O8: 2.77
A9: Mar | B9: 60 | C9: 0.89 | D9: 8.64 | E9: 10 | F9: 0.87 | G9: 1.72 | K9: Mar | L9: 1.18 | M9: 7.33 | N9: 1.14 | O9: 1.72 | Q9: Whole Installation table A5:G18:
A10: Apr | B10: 60 | C10: 0.96 | D10: 26.41 | E10: 10 | F10: 0.93 | G10: 2.28 | K10: Apr | L10: 0.75 | M10: 2.1 | N10: 0.75 | O10: 1.1 | Q10: Mean: for 1/2 hourly and daily periods calculate mean of values across all operational combustion lines for the month
A11: May | B11: 60 | C11: 0.89 | D11: 5.52 | E11: 10 | F11: 0.88 | G11: 1.82 | K11: May | L11: 0.67 | M11: 2.09 | N11: 0.66 | O11: 1.2
A12: Jun | B12: 60 | C12: 1.02 | D12: 3.04 | E12: 10 | F12: 1.01 | G12: 2.03 | K12: Jun | L12: 0.53 | M12: 1.79 | N12: 0.52 | O12: 1.25
A13: Jul | B13: 60 | C13: 1.09 | D13: 7.58 | E13: 10 | F13: 1.09 | G13: 2.39 | K13: Jul | L13: 0.77 | M13: 5.17 | N13: 0.75 | O13: 1.33 | Q13: Maximum: for 1/2 hourly and daily periods use the highest value across all operational combustion lines for the month
A14: Aug | B14: 60 | C14: 1.08 | D14: 3.33 | E14: 10 | F14: 1.09 | G14: 1.82 | K14: Aug | L14: 0.74 | M14: 2.93 | N14: 0.74 | O14: 1.29
A15: Sep | B15: 60 | C15: 1.04 | D15: 7.87 | E15: 10 | F15: 1.04 | G15: 3.16 | K15: Sep | L15: 0.74 | M15: 2.12 | N15: 0.73 | O15: 1.35
A16: Oct | B16: 60 | C16: 1.05 | D16: 5 | E16: 10 | F16: 1.05 | G16: 1.63 | K16: Oct | L16: 0.99 | M16: 2.48 | N16: 0.99 | O16: 1.32
A17: Nov | B17: 60 | C17: 1 | D17: 6.48 | E17: 10 | F17: 1.01 | G17: 1.93 | K17: Nov | L17: 0.53 | M17: 2.51 | N17: 0.53 | O17: 1.25
A18: Dec | B18: 60 | C18: 0.98 | D18: 4.14 | E18: 10 | F18: 0.98 | G18: 2.39 | K18: Dec | L18: 0.53 | M18: 2.2 | N18: 0.54 | O18: 0.95
K19: Annual | L19: =AVERAGE(L7:L18) -> 0.9208333333 | M19: =MAX(M7:M18) -> 14.38 | N19: =AVERAGE(N7:N18) -> 0.9166666667 | O19: =MAX(O7:O18) -> 3.24
J21: =+A6 -> 2020 | K21: mg/Nm3 | L21: Monthly 1/2 hourly mean | M21: Monthly 1/2 hourly maximum | N21: Monthly daily mean | O21: Monthly daily maximum
J22: A2 | K22: Jan | L22: 1.02 | M22: 5.7 | N22: 0.98 | O22: 2.25
K23: Feb | L23: 0.64 | M23: 2.02 | N23: 0.64 | O23: 0.86
K24: Mar | L24: 0.58 | M24: 0.98 | N24: 0.58 | O24: 0.65
K25: Apr | L25: 0.78 | M25: 1.39 | N25: 0.78 | O25: 1
K26: May | L26: 1.01 | M26: 5.52 | N26: 1.01 | O26: 1.82
K27: Jun | L27: 1.6 | M27: 3.04 | N27: 1.61 | O27: 2.03
K28: Jul | L28: 1.46 | M28: 7.58 | N28: 1.44 | O28: 2.39
K29: Aug | L29: 1.35 | M29: 3.07 | N29: 1.35 | O29: 1.82
K30: Sep | L30: 0.88 | M30: 2.95 | N30: 0.88 | O30: 1.62
K31: Oct | L31: 1.25 | M31: 3.19 | N31: 1.25 | O31: 1.63
K32: Nov | L32: 1.54 | M32: 6.48 | N32: 1.54 | O32: 1.93
K33: Dec | L33: 1.7 | M33: 3.97 | N33: 1.71 | O33: 2.39
K34: Annual | L34: =AVERAGE(L22:L33) -> 1.150833333 | M34: =MAX(M22:M33) -> 7.58 | N34: =AVERAGE(N22:N33) -> 1.1475 | O34: =MAX(O22:O33) -> 2.39
J36: =+A6 -> 2020 | K36: mg/Nm3 | L36: Monthly 1/2 hourly mean | M36: Monthly 1/2 hourly maximum | N36: Monthly daily mean | O36: Monthly daily maximum
J37: A3 | K37: Jan | L37: 1.38 | M37: 18.4 | N37: 1.36 | O37: 3.36
K38: Feb | L38: 0.99 | M38: 7.62 | N38: 0.99 | O38: 1.56
K39: Mar | L39: 1 | M39: 8.64 | N39: 1 | O39: 1.5
K40: Apr | L40: 1.45 | M40: 26.41 | N40: 1.37 | O40: 2.28
K41: May | L41: 0.98 | M41: 3.18 | N41: 0.98 | O41: 1.71
K42: Jun | L42: 0.93 | M42: 2.76 | N42: 0.93 | O42: 1.33
K43: Jul | L43: 1.12 | M43: 5.19 | N43: 1.12 | O43: 1.89
K44: Aug | L44: 1.16 | M44: 3.33 | N44: 1.16 | O44: 1.63
K45: Sep | L45: 1.43 | M45: 7.87 | N45: 1.44 | O45: 3.16
K46: Oct | L46: 0.93 | M46: 5 | N46: 0.93 | O46: 1.49
K47: Nov | L47: 0.91 | M47: 6.44 | N47: 0.91 | O47: 1.76
A48: Comments : | K48: Dec | L48: 0.73 | M48: 4.14 | N48: 0.73 | O48: 1.12
K49: Annual | L49: =AVERAGE(L37:L48) -> 1.084166667 | M49: =MAX(M37:M48) -> 26.41 | N49: =AVERAGE(N37:N48) -> 1.076666667 | O49: =MAX(O37:O48) -> 3.36
J51: =+A6 -> 2020 | K51: mg/Nm3 | L51: Monthly 1/2 hourly mean | M51: Monthly 1/2 hourly maximum | N51: Monthly daily mean | O51: Monthly daily maximum
J52: A4 | K52: Jan
K53: Feb
K54: Mar
K55: Apr
K56: May
K57: Jun
K58: Jul
K59: Aug
K60: Sep
K61: Oct
K62: Nov
K63: Dec
K64: Annual | L64: =AVERAGE(L52:L63) ->  | M64: =MAX(M52:M63) -> 0 | N64: =AVERAGE(N52:N63) ->  | O64: =MAX(O52:O63) -> 0
J66: =+A6 -> 2020 | K66: mg/Nm3 | L66: Monthly 1/2 hourly mean | M66: Monthly 1/2 hourly maximum | N66: Monthly daily mean | O66: Monthly daily maximum
J67: A5 | K67: Jan
K68: Feb
K69: Mar
K70: Apr
K71: May
K72: Jun
K73: Jul
K74: Aug
K75: Sep
K76: Oct
K77: Nov
K78: Dec
K79: Annual | L79: =AVERAGE(L67:L78) ->  | M79: =MAX(M67:M78) -> 0 | N79: =AVERAGE(N67:N78) ->  | O79: =MAX(O67:O78) -> 0

Sheet SO2
A1: =+'Cover Page'!$B$29 -> Annual Performance Report 2021 | E1: =+'Cover Page'!$B$33 -> The Coventry And Solihull Waste Disposal Company Ltd
A3: Monitoring of Sulphur dioxide emissions | D3: Whole Installation | G3: See Notes in Cell Q3 | J3: =+A3 -> Monitoring of Sulphur dioxide emissions | N3: Per Combustion Line | Q3: Notes:
Q4: User to add logic to complete Whole installation, Table A5:G18. From the data in Per Combustion Line, Table J6:O79, subject to No. of lines installed
A5: mg/Nm3 | B5: 1/2 Hourly Reference Periods | E5: Daily Reference Periods
A6: =+'Cover Page'!C39 -> 2020 | B6: 1/2 hourly SO2 ELV | C6: Monthly 1/2 hourly mean | D6: Highest 1/2 hourly maximum | E6: Daily SO2 ELV | F6: Monthly daily mean | G6: Highest daily maximum | J6: =+A6 -> 2020 | K6: mg/Nm3 | L6: Monthly 1/2 hourly mean | M6: Monthly 1/2 hourly maximum | N6: Monthly daily mean | O6: Monthly daily maximum
A7: Jan | B7: 200 | C7: 41.63 | D7: 151.83 | E7: 50 | F7: 41.38 | G7: 46.64 | J7: A1 | K7: Jan | L7: 41.27 | M7: 151.83 | N7: 40.91 | O7: 46.2
A8: Feb | B8: 200 | C8: 43.77 | D8: 152.34 | E8: 50 | F8: 43.75 | G8: 49.49 | K8: Feb | L8: 44.03 | M8: 147.89 | N8: 43.83 | O8: 46.87
A9: Mar | B9: 200 | C9: 42.75 | D9: 134.17 | E9: 50 | F9: 42.85 | G9: 48.28 | K9: Mar | L9: 41.61 | M9: 127.2 | N9: 41.9 | O9: 46.11 | Q9: Whole Installation table A5:G18:
A10: Apr | B10: 200 | C10: 41.39 | D10: 139.57 | E10: 50 | F10: 41.41 | G10: 45.55 | K10: Apr | L10: 38.38 | M10: 88.1 | N10: 38.47 | O10: 41.35 | Q10: Mean: for 1/2 hourly and daily periods calculate mean of values across all operational combustion lines for the month
A11: May | B11: 200 | C11: 41.38 | D11: 130.61 | E11: 50 | F11: 41.49 | G11: 46.06 | K11: May | L11: 37.56 | M11: 88.9 | N11: 37.82 | O11: 42.12
A12: Jun | B12: 200 | C12: 41.23 | D12: 117.43 | E12: 50 | F12: 41.42 | G12: 46.78 | K12: Jun | L12: 38.14 | M12: 117.43 | N12: 38.76 | O12: 41.88
A13: Jul | B13: 200 | C13: 37.22 | D13: 136.85 | E13: 50 | F13: 37.48 | G13: 44.93 | K13: Jul | L13: 35.5 | M13: 108.85 | N13: 36.47 | O13: 42.24 | Q13: Maximum: for 1/2 hourly and daily periods use the highest value across all operational combustion lines for the month
A14: Aug | B14: 200 | C14: 36.6 | D14: 112.32 | E14: 50 | F14: 36.67 | G14: 45.65 | K14: Aug | L14: 35.38 | M14: 85.35 | N14: 35.34 | O14: 41.71
A15: Sep | B15: 200 | C15: 35.35 | D15: 150.52 | E15: 50 | F15: 35.52 | G15: 45.57 | K15: Sep | L15: 32.68 | M15: 63.92 | N15: 32.79 | O15: 40.27
A16: Oct | B16: 200 | C16: 33.46 | D16: 147.81 | E16: 50 | F16: 33.43 | G16: 45.93 | K16: Oct | L16: 28.59 | M16: 135.42 | N16: 28.58 | O16: 41.53
A17: Nov | B17: 200 | C17: 34.95 | D17: 145.41 | E17: 50 | F17: 35.23 | G17: 46.55 | K17: Nov | L17: 28.54 | M17: 64.33 | N17: 28.85 | O17: 40.32
A18: Dec | B18: 200 | C18: 33.55 | D18: 189.31 | E18: 50 | F18: 33.47 | G18: 46.3 | K18: Dec | L18: 28.35 | M18: 103.1 | N18: 28.45 | O18: 39.35
K19: Annual | L19: =AVERAGE(L7:L18) -> 35.83583333 | M19: =MAX(M7:M18) -> 151.83 | N19: =AVERAGE(N7:N18) -> 36.01416667 | O19: =MAX(O7:O18) -> 46.87
J21: =+A6 -> 2020 | K21: mg/Nm3 | L21: Monthly 1/2 hourly mean | M21: Monthly 1/2 hourly maximum | N21: Monthly daily mean | O21: Monthly daily maximum
J22: A2 | K22: Jan | L22: 42.42 | M22: 148.85 | N22: 42.02 | O22: 46.64
K23: Feb | L23: 44.6 | M23: 152.34 | N23: 44.78 | O23: 49.49
K24: Mar | L24: 43.13 | M24: 134.17 | N24: 43.14 | O24: 48.28
K25: Apr | L25: 43.07 | M25: 83.52 | N25: 43.07 | O25: 44.82
K26: May | L26: 43.41 | M26: 130.61 | N26: 43.42 | O26: 46.06
K27: Jun | L27: 44.39 | M27: 111.4 | N27: 44.44 | O27: 46.78
K28: Jul | L28: 43.48 | M28: 136.85 | N28: 43.24 | O28: 44.93
K29: Aug | L29: 43.35 | M29: 112.32 | N29: 43.35 | O29: 45.65
K30: Sep | L30: 42.74 | M30: 150.52 | N30: 42.74 | O30: 45.57
K31: Oct | L31: 43.08 | M31: 147.81 | N31: 43.07 | O31: 45.93
K32: Nov | L32: 42.89 | M32: 145.41 | N32: 42.9 | O32: 46.55
K33: Dec | L33: 42.76 | M33: 189.31 | N33: 42.7 | O33: 46.3
K34: Annual | L34: =AVERAGE(L22:L33) -> 43.27666667 | M34: =MAX(M22:M33) -> 189.31 | N34: =AVERAGE(N22:N33) -> 43.23916667 | O34: =MAX(O22:O33) -> 49.49
J36: =+A6 -> 2020 | K36: mg/Nm3 | L36: Monthly 1/2 hourly mean | M36: Monthly 1/2 hourly maximum | N36: Monthly daily mean | O36: Monthly daily maximum
J37: A3 | K37: Jan | L37: 41.44 | M37: 104.48 | N37: 41.39 | O37: 45.81
K38: Feb | L38: 42.73 | M38: 115.72 | N38: 42.73 | O38: 46.35
K39: Mar | L39: 43.09 | M39: 116.61 | N39: 43.1 | O39: 47.17
K40: Apr | L40: 43.05 | M40: 139.57 | N40: 43.03 | O40: 45.55
K41: May | L41: 43.16 | M41: 116.37 | N41: 43.15 | O41: 45.78
K42: Jun | L42: 41.24 | M42: 102.38 | N42: 41.19 | O42: 44.52
K43: Jul | L43: 34.22 | M43: 134.13 | N43: 34.2 | O43: 43.4
K44: Aug | L44: 30.98 | M44: 66.73 | N44: 30.91 | O44: 39.43
K45: Sep | L45: 29.86 | M45: 93.81 | N45: 30.04 | O45: 38.5
K46: Oct | L46: 28.7 | M46: 57.74 | N46: 28.65 | O46: 42.1
K47: Nov | L47: 32.33 | M47: 86.28 | N47: 32.51 | O47: 39.1
A48: Comments : | K48: Dec | L48: 29.83 | M48: 143.05 | N48: 29.83 | O48: 37.38
K49: Annual | L49: =AVERAGE(L37:L48) -> 36.71916667 | M49: =MAX(M37:M48) -> 143.05 | N49: =AVERAGE(N37:N48) -> 36.7275 | O49: =MAX(O37:O48) -> 47.17
J51: =+A6 -> 2020 | K51: mg/Nm3 | L51: Monthly 1/2 hourly mean | M51: Monthly 1/2 hourly maximum | N51: Monthly daily mean | O51: Monthly daily maximum
J52: A4 | K52: Jan
K53: Feb
K54: Mar
K55: Apr
K56: May
K57: Jun
K58: Jul
K59: Aug
K60: Sep
K61: Oct
K62: Nov
K63: Dec
K64: Annual | L64: =AVERAGE(L52:L63) ->  | M64: =MAX(M52:M63) -> 0 | N64: =AVERAGE(N52:N63) ->  | O64: =MAX(O52:O63) -> 0
J66: =+A6 -> 2020 | K66: mg/Nm3 | L66: Monthly 1/2 hourly mean | M66: Monthly 1/2 hourly maximum | N66: Monthly daily mean | O66: Monthly daily maximum
J67: A5 | K67: Jan
K68: Feb
K69: Mar
K70: Apr
K71: May
K72: Jun
K73: Jul
K74: Aug
K75: Sep
K76: Oct
K77: Nov
K78: Dec
K79: Annual | L79: =AVERAGE(L67:L78) ->  | M79: =MAX(M67:M78) -> 0 | N79: =AVERAGE(N67:N78) ->  | O79: =MAX(O67:O78) -> 0

Sheet NOx
A1: =+'Cover Page'!$B$29 -> Annual Performance Report 2021 | E1: =+'Cover Page'!$B$33 -> The Coventry And Solihull Waste Disposal Company Ltd
A3: Monitoring of Oxides of Nitrogen emissions | D3: Whole Installation | G3: See Notes in Cell Q3 | J3: =+A3 -> Monitoring of Oxides of Nitrogen emissions | N3: Per Combustion Line | Q3: Notes:
Q4: User to add logic to complete Whole installation, Table A5:G18. From the data in Per Combustion Line, Table J6:O79, subject to No. of lines installed
A5: mg/Nm3 | B5: 1/2 Hourly Reference Periods | E5: Daily Reference Periods
A6: =+'Cover Page'!C39 -> 2020 | B6: 1/2 hourly NOx ELV | C6: Monthly 1/2 hourly mean | D6: Highest 1/2 hourly maximum | E6: Daily NOx ELV | F6: Monthly daily mean | G6: Highest daily maximum | J6: =+A6 -> 2020 | K6: mg/Nm3 | L6: Monthly 1/2 hourly mean | M6: Monthly 1/2 hourly maximum | N6: Monthly daily mean | O6: Monthly daily maximum
A7: Jan | B7: 400 | C7: 186.36 | D7: 347.72 | E7: 200 | F7: 185.63 | G7: 197.43 | J7: A1 | K7: Jan | L7: 187.62 | M7: 308.97 | N7: 187.55 | O7: 197.43
A8: Feb | B8: 400 | C8: 185.96 | D8: 340.98 | E8: 200 | F8: 185.79 | G8: 195.45 | K8: Feb | L8: 182.35 | M8: 271.84 | N8: 182.02 | O8: 194.49
A9: Mar | B9: 400 | C9: 185.51 | D9: 330.06 | E9: 200 | F9: 184.74 | G9: 197.2 | K9: Mar | L9: 182.8 | M9: 330.06 | N9: 179.03 | O9: 191.27 | Q9: Whole Installation table A5:G18:
A10: Apr | B10: 400 | C10: 187.97 | D10: 278.01 | E10: 200 | F10: 188.02 | G10: 193.47 | K10: Apr | L10: 187.8 | M10: 278.01 | N10: 188.05 | O10: 192.84 | Q10: Mean: for 1/2 hourly and daily periods calculate mean of values across all operational combustion lines for the month
A11: May | B11: 400 | C11: 189.18 | D11: 313.53 | E11: 200 | F11: 189.32 | G11: 196.11 | K11: May | L11: 188.42 | M11: 313.53 | N11: 188.44 | O11: 196.11
A12: Jun | B12: 400 | C12: 188.15 | D12: 337.81 | E12: 200 | F12: 188.54 | G12: 197.1 | K12: Jun | L12: 186.85 | M12: 307.13 | N12: 187.03 | O12: 197
A13: Jul | B13: 400 | C13: 185.59 | D13: 307.43 | E13: 200 | F13: 185.81 | G13: 197.03 | K13: Jul | L13: 187.28 | M13: 307.43 | N13: 188.35 | O13: 197.03 | Q13: Maximum: for 1/2 hourly and daily periods use the highest value across all operational combustion lines for the month
A14: Aug | B14: 400 | C14: 185.56 | D14: 334.6 | E14: 200 | F14: 185.56 | G14: 195.08 | K14: Aug | L14: 186.09 | M14: 278.01 | N14: 186.03 | O14: 191.17
A15: Sep | B15: 400 | C15: 183.7 | D15: 323.82 | E15: 200 | F15: 183.88 | G15: 196.27 | K15: Sep | L15: 184.79 | M15: 323.82 | N15: 184.99 | O15: 192.97
A16: Oct | B16: 400 | C16: 185.17 | D16: 336.91 | E16: 200 | F16: 185.14 | G16: 193.23 | K16: Oct | L16: 187.56 | M16: 230.99 | N16: 187.56 | O16: 193.22
A17: Nov | B17: 400 | C17: 187.29 | D17: 305.96 | E17: 200 | F17: 187.42 | G17: 193.31 | K17: Nov | L17: 188.13 | M17: 305.96 | N17: 188.21 | O17: 193.31
A18: Dec | B18: 400 | C18: 183.36 | D18: 268.97 | E18: 200 | F18: 183.32 | G18: 198.45 | K18: Dec | L18: 186.83 | M18: 268.97 | N18: 186.71 | O18: 198.45
K19: Annual | L19: =AVERAGE(L7:L18) -> 186.3766667 | M19: =MAX(M7:M18) -> 330.06 | N19: =AVERAGE(N7:N18) -> 186.1641667 | O19: =MAX(O7:O18) -> 198.45
J21: =+A6 -> 2020 | K21: mg/Nm3 | L21: Monthly 1/2 hourly mean | M21: Monthly 1/2 hourly maximum | N21: Monthly daily mean | O21: Monthly daily maximum
J22: A2 | K22: Jan | L22: 186.82 | M22: 347.72 | N22: 184.51 | O22: 196.29
K23: Feb | L23: 187.39 | M23: 340.98 | N23: 186.93 | O23: 195.45
K24: Mar | L24: 187.61 | M24: 295.6 | N24: 187.64 | O24: 197.2
K25: Apr | L25: 188.13 | M25: 254.58 | N25: 188.13 | O25: 193.47
K26: May | L26: 189.35 | M26: 263.17 | N26: 189.34 | O26: 194.41
K27: Jun | L27: 188.94 | M27: 337.81 | N27: 189.8 | O27: 196.85
K28: Jul | L28: 183.34 | M28: 282.46 | N28: 183.15 | O28: 195.54
K29: Aug | L29: 187.55 | M29: 334.6 | N29: 187.53 | O29: 195.08
K30: Sep | L30: 186.82 | M30: 228.31 | N30: 186.82 | O30: 196.27
K31: Oct | L31: 188.7 | M31: 336.91 | N31: 188.71 | O31: 193.23
K32: Nov | L32: 188.05 | M32: 273.9 | N32: 188.02 | O32: 192.31
K33: Dec | L33: 186.51 | M33: 267.6 | N33: 186.71 | O33: 191.72
K34: Annual | L34: =AVERAGE(L22:L33) -> 187.4341667 | M34: =MAX(M22:M33) -> 347.72 | N34: =AVERAGE(N22:N33) -> 187.2741667 | O34: =MAX(O22:O33) -> 197.2
J36: =+A6 -> 2020 | K36: mg/Nm3 | L36: Monthly 1/2 hourly mean | M36: Monthly 1/2 hourly maximum | N36: Monthly daily mean | O36: Monthly daily maximum
J37: A3 | K37: Jan | L37: 184.79 | M37: 290.64 | N37: 184.54 | O37: 193.31
K38: Feb | L38: 187.98 | M38: 286.65 | N38: 187.98 | O38: 192.87
K39: Mar | L39: 185.15 | M39: 274.4 | N39: 185.17 | O39: 193.93
K40: Apr | L40: 187.98 | M40: 218.82 | N40: 187.84 | O40: 191.32
K41: May | L41: 189.76 | M41: 307.56 | N41: 190.19 | O41: 194.96
K42: Jun | L42: 188.64 | M42: 306.73 | N42: 188.83 | O42: 197.1
K43: Jul | L43: 185.68 | M43: 288.1 | N43: 185.65 | O43: 193.28
K44: Aug | L44: 183.02 | M44: 269.03 | N44: 182.96 | O44: 191.93
K45: Sep | L45: 179.76 | M45: 263.8 | N45: 180.04 | O45: 195.06
K46: Oct | L46: 179.23 | M46: 266.39 | N46: 179.16 | O46: 191.22
K47: Nov | L47: 183.3 | M47: 259.75 | N47: 183.81 | O47: 189.96
A48: Comments : | K48: Dec | L48: 177.08 | M48: 267.15 | N48: 177.07 | O48: 189.67
K49: Annual | L49: =AVERAGE(L37:L48) -> 184.3641667 | M49: =MAX(M37:M48) -> 307.56 | N49: =AVERAGE(N37:N48) -> 184.4366667 | O49: =MAX(O37:O48) -> 197.1
J51: =+A6 -> 2020 | K51: mg/Nm3 | L51: Monthly 1/2 hourly mean | M51: Monthly 1/2 hourly maximum | N51: Monthly daily mean | O51: Monthly daily maximum
J52: A4 | K52: Jan
K53: Feb
K54: Mar
K55: Apr
K56: May
K57: Jun
K58: Jul
K59: Aug
K60: Sep
K61: Oct
K62: Nov
K63: Dec
K64: Annual | L64: =AVERAGE(L52:L63) ->  | M64: =MAX(M52:M63) -> 0 | N64: =AVERAGE(N52:N63) ->  | O64: =MAX(O52:O63) -> 0
J66: =+A6 -> 2020 | K66: mg/Nm3 | L66: Monthly 1/2 hourly mean | M66: Monthly 1/2 hourly maximum | N66: Monthly daily mean | O66: Monthly daily maximum
J67: A5 | K67: Jan
K68: Feb
K69: Mar
K70: Apr
K71: May
K72: Jun
K73: Jul
K74: Aug
K75: Sep
K76: Oct
K77: Nov
K78: Dec
K79: Annual | L79: =AVERAGE(L67:L78) ->  | M79: =MAX(M67:M78) -> 0 | N79: =AVERAGE(N67:N78) ->  | O79: =MAX(O67:O78) -> 0

Sheet TOC
A1: =+'Cover Page'!$B$29 -> Annual Performance Report 2021 | E1: =+'Cover Page'!$B$33 -> The Coventry And Solihull Waste Disposal Company Ltd
A3: Monitoring of Total organic carbon emissions | D3: Whole Installation | G3: See Notes in Cell Q3 | J3: =+A3 -> Monitoring of Total organic carbon emissions | N3: Per Combustion Line | Q3: Notes:
Q4: User to add logic to complete Whole installation, Table A5:G18. From the data in Per Combustion Line, Table J6:O79, subject to No. of lines installed
A5: mg/Nm3 | B5: 1/2 Hourly Reference Periods | E5: Daily Reference Periods
A6: =+'Cover Page'!C39 -> 2020 | B6: 1/2 hourly TOC ELV | C6: Monthly 1/2 hourly mean | D6: Highest 1/2 hourly maximum | E6: Daily TOC ELV | F6: Monthly daily mean | G6: Highest daily maximum | J6: =+A6 -> 2020 | K6: mg/Nm3 | L6: Monthly 1/2 hourly mean | M6: Monthly 1/2 hourly maximum | N6: Monthly daily mean | O6: Monthly daily maximum
A7: Jan | B7: 20 | C7: 0.32 | D7: 8.9 | E7: 10 | F7: 0.31 | G7: 1.58 | J7: A1 | K7: Jan | L7: 0.49 | M7: 2.96 | N7: 0.49 | O7: 0.72
A8: Feb | B8: 20 | C8: 0.27 | D8: 6.61 | E8: 10 | F8: 0.27 | G8: 1.23 | K8: Feb | L8: 0.54 | M8: 6.61 | N8: 0.56 | O8: 1.23
A9: Mar | B9: 20 | C9: 0.23 | D9: 5.79 | E9: 10 | F9: 0.23 | G9: 0.71 | K9: Mar | L9: 0.47 | M9: 1.67 | N9: 0.47 | O9: 0.67 | Q9: Whole Installation table A5:G18:
A10: Apr | B10: 20 | C10: 0.17 | D10: 4.37 | E10: 10 | F10: 0.17 | G10: 0.58 | K10: Apr | L10: 0.21 | M10: 3.97 | N10: 0.21 | O10: 0.58 | Q10: Mean: for 1/2 hourly and daily periods calculate mean of values across all operational combustion lines for the month
A11: May | B11: 20 | C11: 0.19 | D11: 4.75 | E11: 10 | F11: 0.19 | G11: 0.53 | K11: May | L11: 0.19 | M11: 4.75 | N11: 0.2 | O11: 0.53
A12: Jun | B12: 20 | C12: 0.22 | D12: 4.23 | E12: 10 | F12: 0.22 | G12: 0.95 | K12: Jun | L12: 0.07 | M12: 1.83 | N12: 0.07 | O12: 0.4
A13: Jul | B13: 20 | C13: 0.18 | D13: 7.78 | E13: 10 | F13: 0.19 | G13: 1.14 | K13: Jul | L13: 0.04 | M13: 1.4 | N13: 0.04 | O13: 0.11 | Q13: Maximum: for 1/2 hourly and daily periods use the highest value across all operational combustion lines for the month
A14: Aug | B14: 20 | C14: 0.28 | D14: 3.22 | E14: 10 | F14: 0.28 | G14: 0.8 | K14: Aug | L14: 0.23 | M14: 1.01 | N14: 0.24 | O14: 0.64
A15: Sep | B15: 20 | C15: 0.29 | D15: 3.28 | E15: 10 | F15: 0.29 | G15: 0.84 | K15: Sep | L15: 0.51 | M15: 1.23 | N15: 0.51 | O15: 0.82
A16: Oct | B16: 20 | C16: 0.18 | D16: 4.02 | E16: 10 | F16: 0.18 | G16: 0.64 | K16: Oct | L16: 0.22 | M16: 4.02 | N16: 0.22 | O16: 0.64
A17: Nov | B17: 20 | C17: 0.27 | D17: 4.89 | E17: 10 | F17: 0.27 | G17: 0.84 | K17: Nov | L17: 0.42 | M17: 4.89 | N17: 0.42 | O17: 0.58
A18: Dec | B18: 20 | C18: 0.23 | D18: 3.65 | E18: 10 | F18: 0.23 | G18: 0.68 | K18: Dec | L18: 0.46 | M18: 3.65 | N18: 0.47 | O18: 0.68
K19: Annual | L19: =AVERAGE(L7:L18) -> 0.3208333333 | M19: =MAX(M7:M18) -> 6.61 | N19: =AVERAGE(N7:N18) -> 0.325 | O19: =MAX(O7:O18) -> 1.23
J21: =+A6 -> 2020 | K21: mg/Nm3 | L21: Monthly 1/2 hourly mean | M21: Monthly 1/2 hourly maximum | N21: Monthly daily mean | O21: Monthly daily maximum
J22: A2 | K22: Jan | L22: 0.33 | M22: 8.9 | N22: 0.33 | O22: 1.58
K23: Feb | L23: 0.17 | M23: 2.49 | N23: 0.17 | O23: 0.83
K24: Mar | L24: 0.17 | M24: 4.39 | N24: 0.17 | O24: 0.71
K25: Apr | L25: 0.1 | M25: 4.37 | N25: 0.1 | O25: 0.44
K26: May | L26: 0.14 | M26: 1.61 | N26: 0.14 | O26: 0.29
K27: Jun | L27: 0.48 | M27: 4.23 | N27: 0.48 | O27: 0.95
K28: Jul | L28: 0.51 | M28: 7.78 | N28: 0.51 | O28: 1.14
K29: Aug | L29: 0.48 | M29: 3.22 | N29: 0.48 | O29: 0.8
K30: Sep | L30: 0.26 | M30: 3.28 | N30: 0.26 | O30: 0.84
K31: Oct | L31: 0.13 | M31: 2.44 | N31: 0.13 | O31: 0.48
K32: Nov | L32: 0.15 | M32: 1.39 | N32: 0.15 | O32: 0.84
K33: Dec | L33: 0.17 | M33: 3.01 | N33: 0.18 | O33: 0.6
K34: Annual | L34: =AVERAGE(L22:L33) -> 0.2575 | M34: =MAX(M22:M33) -> 8.9 | N34: =AVERAGE(N22:N33) -> 0.2583333333 | O34: =MAX(O22:O33) -> 1.58
J36: =+A6 -> 2020 | K36: mg/Nm3 | L36: Monthly 1/2 hourly mean | M36: Monthly 1/2 hourly maximum | N36: Monthly daily mean | O36: Monthly daily maximum
J37: A3 | K37: Jan | L37: 0.14 | M37: 0.8 | N37: 0.13 | O37: 0.27
K38: Feb | L38: 0.1 | M38: 1.22 | N38: 0.1 | O38: 0.25
K39: Mar | L39: 0.15 | M39: 5.79 | N39: 0.15 | O39: 0.47
K40: Apr | L40: 0.23 | M40: 2 | N40: 0.23 | O40: 0.49
K41: May | L41: 0.24 | M41: 3.16 | N41: 0.24 | O41: 0.52
K42: Jun | L42: 0.13 | M42: 1.54 | N42: 0.13 | O42: 0.25
K43: Jul | L43: 0.07 | M43: 1.04 | N43: 0.07 | O43: 0.13
K44: Aug | L44: 0.12 | M44: 1.87 | N44: 0.12 | O44: 0.47
K45: Sep | L45: 0.17 | M45: 2.92 | N45: 0.17 | O45: 0.64
K46: Oct | L46: 0.2 | M46: 1.94 | N46: 0.2 | O46: 0.31
K47: Nov | L47: 0.18 | M47: 3.02 | N47: 0.18 | O47: 0.37
A48: Comments : | K48: Dec | L48: 0.06 | M48: 1.26 | N48: 0.06 | O48: 0.21
K49: Annual | L49: =AVERAGE(L37:L48) -> 0.1491666667 | M49: =MAX(M37:M48) -> 5.79 | N49: =AVERAGE(N37:N48) -> 0.1483333333 | O49: =MAX(O37:O48) -> 0.64
J51: =+A6 -> 2020 | K51: mg/Nm3 | L51: Monthly 1/2 hourly mean | M51: Monthly 1/2 hourly maximum | N51: Monthly daily mean | O51: Monthly daily maximum
J52: A4 | K52: Jan
K53: Feb
K54: Mar
K55: Apr
K56: May
K57: Jun
K58: Jul
K59: Aug
K60: Sep
K61: Oct
K62: Nov
K63: Dec
K64: Annual | L64: =AVERAGE(L52:L63) ->  | M64: =MAX(M52:M63) -> 0 | N64: =AVERAGE(N52:N63) ->  | O64: =MAX(O52:O63) -> 0
J66: =+A6 -> 2020 | K66: mg/Nm3 | L66: Monthly 1/2 hourly mean | M66: Monthly 1/2 hourly maximum | N66: Monthly daily mean | O66: Monthly daily maximum
J67: A5 | K67: Jan
K68: Feb
K69: Mar
K70: Apr
K71: May
K72: Jun
K73: Jul
K74: Aug
K75: Sep
K76: Oct
K77: Nov
K78: Dec
K79: Annual | L79: =AVERAGE(L67:L78) ->  | M79: =MAX(M67:M78) -> 0 | N79: =AVERAGE(N67:N78) ->  | O79: =MAX(O67:O78) -> 0

Sheet Particulates
A1: =+'Cover Page'!$B$29 -> Annual Performance Report 2021 | E1: =+'Cover Page'!$B$33 -> The Coventry And Solihull Waste Disposal Company Ltd
A3: Monitoring of Particulate matter emissions | D3: Whole Installation | G3: See Notes in Cell Q3 | J3: =+A3 -> Monitoring of Particulate matter emissions | N3: Per Combustion Line | Q3: Notes:
Q4: User to add logic to complete Whole installation, Table A5:G18. From the data in Per Combustion Line, Table J6:O79, subject to No. of lines installed
A5: mg/Nm3 | B5: 1/2 Hourly Reference Periods | E5: Daily Reference Periods
A6: =+'Cover Page'!C39 -> 2020 | B6: 1/2 hourly PM ELV | C6: Monthly 1/2 hourly mean | D6: Highest 1/2 hourly maximum | E6: Daily PM ELV | F6: Monthly daily mean | G6: Highest daily maximum | J6: =+A6 -> 2020 | K6: mg/Nm3 | L6: Monthly 1/2 hourly mean | M6: Monthly 1/2 hourly maximum | N6: Monthly daily mean | O6: Monthly daily maximum
A7: Jan | B7: 30 | C7: 1.85 | D7: 13.04 | E7: 10 | F7: 1.82 | G7: 6.77 | J7: A1 | K7: Jan | L7: 3.9 | M7: 13.04 | N7: 3.86 | O7: 6.77
A8: Feb | B8: 30 | C8: 1.18 | D8: 23.62 | E8: 10 | F8: 1.11 | G8: 3.16 | K8: Feb | L8: 2.32 | M8: 10.72 | N8: 2.31 | O8: 3.16
A9: Mar | B9: 30 | C9: 0.97 | D9: 12.55 | E9: 10 | F9: 0.94 | G9: 3.02 | K9: Mar | L9: 2.01 | M9: 12.55 | N9: 1.98 | O9: 3.02 | Q9: Whole Installation table A5:G18:
A10: Apr | B10: 30 | C10: 0.74 | D10: 2.67 | E10: 10 | F10: 0.74 | G10: 1.41 | K10: Apr | L10: 0.98 | M10: 2.67 | N10: 0.98 | O10: 1.41 | Q10: Mean: for 1/2 hourly and daily periods calculate mean of values across all operational combustion lines for the month
A11: May | B11: 30 | C11: 0.89 | D11: 5.98 | E11: 10 | F11: 0.89 | G11: 2.41 | K11: May | L11: 1.45 | M11: 5.98 | N11: 1.46 | O11: 2.41
A12: Jun | B12: 30 | C12: 1.45 | D12: 6.96 | E12: 10 | F12: 1.47 | G12: 4.38 | K12: Jun | L12: 2.86 | M12: 6.96 | N12: 2.91 | O12: 4.38
A13: Jul | B13: 30 | C13: 2.25 | D13: 26.46 | E13: 10 | F13: 2.18 | G13: 7.36 | K13: Jul | L13: 4.97 | M13: 18.27 | N13: 5.12 | O13: 7.36 | Q13: Maximum: for 1/2 hourly and daily periods use the highest value across all operational combustion lines for the month
A14: Aug | B14: 30 | C14: 1.41 | D14: 5.3 | E14: 10 | F14: 1.4 | G14: 3.57 | K14: Aug | L14: 2.82 | M14: 5.3 | N14: 2.82 | O14: 3.57
A15: Sep | B15: 30 | C15: 1.85 | D15: 15.94 | E15: 10 | F15: 1.84 | G15: 4.33 | K15: Sep | L15: 2.76 | M15: 9.21 | N15: 2.77 | O15: 4.33
A16: Oct | B16: 30 | C16: 1.51 | D16: 16.91 | E16: 10 | F16: 1.51 | G16: 4.94 | K16: Oct | L16: 0.31 | M16: 1.41 | N16: 0.31 | O16: 1.03
A17: Nov | B17: 30 | C17: 0.71 | D17: 17.88 | E17: 10 | F17: 0.68 | G17: 5.32 | K17: Nov | L17: 0.25 | M17: 5.52 | N17: 0.25 | O17: 0.62
A18: Dec | B18: 30 | C18: 0.8 | D18: 5.01 | E18: 10 | F18: 0.81 | G18: 3.19 | K18: Dec | L18: 0.36 | M18: 0.63 | N18: 0.37 | O18: 0.5
K19: Annual | L19: =AVERAGE(L7:L18) -> 2.0825 | M19: =MAX(M7:M18) -> 18.27 | N19: =AVERAGE(N7:N18) -> 2.095 | O19: =MAX(O7:O18) -> 7.36
J21: =+A6 -> 2020 | K21: mg/Nm3 | L21: Monthly 1/2 hourly mean | M21: Monthly 1/2 hourly maximum | N21: Monthly daily mean | O21: Monthly daily maximum
J22: A2 | K22: Jan | L22: 0.5 | M22: 0.87 | N22: 0.5 | O22: 0.72
K23: Feb | L23: 0.47 | M23: 23.62 | N23: 0.34 | O23: 0.48
K24: Mar | L24: 0.47 | M24: 2.04 | N24: 0.47 | O24: 0.69
K25: Apr | L25: 0.46 | M25: 0.97 | N25: 0.46 | O25: 0.57
K26: May | L26: 0.42 | M26: 4.11 | N26: 0.42 | O26: 0.59
K27: Jun | L27: 0.77 | M27: 2.56 | N27: 0.79 | O27: 1.58
K28: Jul | L28: 0.94 | M28: 26.46 | N28: 0.92 | O28: 1.82
K29: Aug | L29: 0.55 | M29: 1.72 | N29: 0.55 | O29: 0.86
K30: Sep | L30: 0.64 | M30: 15.94 | N30: 0.64 | O30: 2.28
K31: Oct | L31: 0.74 | M31: 16.91 | N31: 0.74 | O31: 2.91
K32: Nov | L32: 0.78 | M32: 17.88 | N32: 0.79 | O32: 2.51
K33: Dec | L33: 1.48 | M33: 5.01 | N33: 1.51 | O33: 3.19
K34: Annual | L34: =AVERAGE(L22:L33) -> 0.685 | M34: =MAX(M22:M33) -> 26.46 | N34: =AVERAGE(N22:N33) -> 0.6775 | O34: =MAX(O22:O33) -> 3.19
J36: =+A6 -> 2020 | K36: mg/Nm3 | L36: Monthly 1/2 hourly mean | M36: Monthly 1/2 hourly maximum | N36: Monthly daily mean | O36: Monthly daily maximum
J37: A3 | K37: Jan | L37: 0.76 | M37: 0.97 | N37: 0.76 | O37: 0.86
K38: Feb | L38: 0.8 | M38: 1.01 | N38: 0.8 | O38: 0.87
K39: Mar | L39: 0.81 | M39: 1 | N39: 0.81 | O39: 0.87
K40: Apr | L40: 0.82 | M40: 1.15 | N40: 0.81 | O40: 0.93
K41: May | L41: 0.79 | M41: 1.07 | N41: 0.79 | O41: 0.91
K42: Jun | L42: 0.73 | M42: 1.05 | N42: 0.73 | O42: 0.78
K43: Jul | L43: 0.7 | M43: 0.95 | N43: 0.7 | O43: 0.77
K44: Aug | L44: 0.87 | M44: 4.62 | N44: 0.84 | O44: 2.34
K45: Sep | L45: 2.41 | M45: 9.13 | N45: 2.41 | O45: 3.33
K46: Oct | L46: 3.5 | M46: 8.91 | N46: 3.5 | O46: 4.94
K47: Nov | L47: 1.71 | M47: 11.65 | N47: 1.51 | O47: 5.32
A48: Comments : | K48: Dec | L48: 0.59 | M48: 1.41 | N48: 0.58 | O48: 1.04
K49: Annual | L49: =AVERAGE(L37:L48) -> 1.2075 | M49: =MAX(M37:M48) -> 11.65 | N49: =AVERAGE(N37:N48) -> 1.186666667 | O49: =MAX(O37:O48) -> 5.32
J51: =+A6 -> 2020 | K51: mg/Nm3 | L51: Monthly 1/2 hourly mean | M51: Monthly 1/2 hourly maximum | N51: Monthly daily mean | O51: Monthly daily maximum
J52: A4 | K52: Jan
K53: Feb
K54: Mar
K55: Apr
K56: May
K57: Jun
K58: Jul
K59: Aug
K60: Sep
K61: Oct
K62: Nov
K63: Dec
K64: Annual | L64: =AVERAGE(L52:L63) ->  | M64: =MAX(M52:M63) -> 0 | N64: =AVERAGE(N52:N63) ->  | O64: =MAX(O52:O63) -> 0
J66: =+A6 -> 2020 | K66: mg/Nm3 | L66: Monthly 1/2 hourly mean | M66: Monthly 1/2 hourly maximum | N66: Monthly daily mean | O66: Monthly daily maximum
J67: A5 | K67: Jan
K68: Feb
K69: Mar
K70: Apr
K71: May
K72: Jun
K73: Jul
K74: Aug
K75: Sep
K76: Oct
K77: Nov
K78: Dec
K79: Annual | L79: =AVERAGE(L67:L78) ->  | M79: =MAX(M67:M78) -> 0 | N79: =AVERAGE(N67:N78) ->  | O79: =MAX(O67:O78) -> 0

Sheet CO 0.5hourly
A1: =+'Cover Page'!$B$29 -> Annual Performance Report 2021 | E1: =+'Cover Page'!$B$33 -> The Coventry And Solihull Waste Disposal Company Ltd
A3: Monitoring of Carbon Monoxide (half hourly) | D3: Whole Installation | G3: See Notes in Cell Q3 | J3: =+A3 -> Monitoring of Carbon Monoxide (half hourly) | N3: Per Combustion Line | Q3: Notes:
Q4: User to add logic to complete Whole installation, Table A5:G18. From the data in Per Combustion Line, Table J6:O79, subject to No. of lines installed
A5: mg/Nm3 | B5: 1/2 Hourly Reference Periods | E5: Daily Reference Periods
A6: =+'Cover Page'!C39 -> 2020 | B6: 1/2 hourly CO ELV | C6: Monthly 1/2 hourly mean | D6: Highest 1/2 hourly maximum | E6: Daily CO ELV | F6: Monthly daily mean | G6: Highest daily maximum | J6: =+A6 -> 2020 | K6: mg/Nm3 | L6: Monthly 1/2 hourly mean | M6: Monthly 1/2 hourly maximum | N6: Monthly daily mean | O6: Monthly daily maximum
A7: Jan | B7: 100 | E7: 50 | J7: A1 | K7: Jan
A8: Feb | B8: =+B7 -> 100 | E8: =+E7 -> 50 | K8: Feb
A9: Mar | B9: =+B8 -> 100 | E9: =+E8 -> 50 | K9: Mar | Q9: Whole Installation table A5:G18:
A10: Apr | B10: 100 | E10: 50 | K10: Apr | Q10: Mean: for 1/2 hourly and daily periods calculate mean of values across all operational combustion lines for the month
A11: May | B11: 100 | E11: 50 | K11: May
A12: Jun | B12: 100 | E12: 50 | K12: Jun
A13: Jul | B13: 100 | E13: 50 | K13: Jul | Q13: Maximum: for 1/2 hourly and daily periods use the highest value across all operational combustion lines for the month
A14: Aug | B14: 100 | E14: 50 | K14: Aug
A15: Sep | B15: 100 | E15: 50 | K15: Sep
A16: Oct | B16: 100 | E16: 50 | K16: Oct
A17: Nov | B17: 100 | E17: 50 | K17: Nov
A18: Dec | B18: 100 | E18: 50 | K18: Dec
K19: Annual | L19: =AVERAGE(L7:L18) ->  | M19: =MAX(M7:M18) -> 0 | N19: =AVERAGE(N7:N18) ->  | O19: =MAX(O7:O18) -> 0
J21: =+A6 -> 2020 | K21: mg/Nm3 | L21: Monthly 1/2 hourly mean | M21: Monthly 1/2 hourly maximum | N21: Monthly daily mean | O21: Monthly daily maximum
J22: A2 | K22: Jan
K23: Feb
K24: Mar
K25: Apr
K26: May
K27: Jun
K28: Jul
K29: Aug
K30: Sep
K31: Oct
K32: Nov
K33: Dec
K34: Annual | L34: =AVERAGE(L22:L33) ->  | M34: =MAX(M22:M33) -> 0 | N34: =AVERAGE(N22:N33) ->  | O34: =MAX(O22:O33) -> 0
J36: =+A6 -> 2020 | K36: mg/Nm3 | L36: Monthly 1/2 hourly mean | M36: Monthly 1/2 hourly maximum | N36: Monthly daily mean | O36: Monthly daily maximum
J37: A3 | K37: Jan
K38: Feb
K39: Mar
K40: Apr
K41: May
K42: Jun
K43: Jul
K44: Aug
K45: Sep
K46: Oct
K47: Nov
A48: Comments : | K48: Dec
K49: Annual | L49: =AVERAGE(L37:L48) ->  | M49: =MAX(M37:M48) -> 0 | N49: =AVERAGE(N37:N48) ->  | O49: =MAX(O37:O48) -> 0
J51: =+A6 -> 2020 | K51: mg/Nm3 | L51: Monthly 1/2 hourly mean | M51: Monthly 1/2 hourly maximum | N51: Monthly daily mean | O51: Monthly daily maximum
J52: A4 | K52: Jan
K53: Feb
K54: Mar
K55: Apr
K56: May
K57: Jun
K58: Jul
K59: Aug
K60: Sep
K61: Oct
K62: Nov
K63: Dec
K64: Annual | L64: =AVERAGE(L52:L63) ->  | M64: =MAX(M52:M63) -> 0 | N64: =AVERAGE(N52:N63) ->  | O64: =MAX(O52:O63) -> 0
J66: =+A6 -> 2020 | K66: mg/Nm3 | L66: Monthly 1/2 hourly mean | M66: Monthly 1/2 hourly maximum | N66: Monthly daily mean | O66: Monthly daily maximum
J67: A5 | K67: Jan
K68: Feb
K69: Mar
K70: Apr
K71: May
K72: Jun
K73: Jul
K74: Aug
K75: Sep
K76: Oct
K77: Nov
K78: Dec
K79: Annual | L79: =AVERAGE(L67:L78) ->  | M79: =MAX(M67:M78) -> 0 | N79: =AVERAGE(N67:N78) ->  | O79: =MAX(O67:O78) -> 0

Sheet CO 95% 10 min
A1: =+'Cover Page'!$B$29 -> Annual Performance Report 2021 | E1: =+'Cover Page'!$B$33 -> The Coventry And Solihull Waste Disposal Company Ltd
A3: Monitoring of Carbon Monoxide (10-minute avg) | E3: Whole Installation | H3: See Notes in Cell S3 | J3: =+A3 -> Monitoring of Carbon Monoxide (10-minute avg) | O3: Per Combustion Line | Q3: Notes: | S3: Notes:
S4: User to add logic to complete Whole installation, Table A5:H18. From the data in Per Combustion Line, Table K6:Q79, subject to No. of lines installed
A5: mg/Nm3 | B5: 10-minute Reference Periods | F5: Daily Reference Periods
A6: =+'Cover Page'!C39 -> 2020 | B6: 95%ile 10-min avg CO ELV | C6: 95%ile 10-min avg maximum | D6: Monthly CO 10-min avg mean | E6: 10-min avg maximum | F6: Daily CO ELV | G6: Monthly daily mean | H6: Highest daily maximum | K6: =+A6 -> 2020 | L6: mg/Nm3 | M6: 95%ile 10-min avg maximum | N6: Monthly CO 10-min avg mean | O6: 10-min avg maximum | P6: Monthly daily mean | Q6: Monthly daily maximum
A7: Jan | B7: 150 | C7: 75.52 | D7: 24.44 | E7: 146.01 | F7: 50 | G7: 24.36 | H7: 46.97 | K7: A1 | L7: Jan | M7: 46.82 | N7: 25.67 | O7: 133.72 | P7: 25.73 | Q7: 32.4
A8: Feb | B8: 150 | C8: 60.9 | D8: 22.71 | E8: 258.78 | F8: 50 | G8: 22.57 | H8: 34.33 | L8: Feb | M8: 60.9 | N8: 27.39 | O8: 258.78 | P8: 27.26 | Q8: 34.33
A9: Mar | B9: 150 | C9: 58.35 | D9: 22.55 | E9: 255.63 | F9: 50 | G9: 22.53 | H9: 31.3 | L9: Mar | M9: 41.04 | N9: 24.7 | O9: 255.63 | P9: 24.84 | Q9: 30.14 | S9: Whole Installation table A5:H18:
A10: Apr | B10: 150 | C10: 102 | D10: 23.07 | E10: 208.36 | F10: 50 | G10: 23.14 | H10: 36.05 | L10: Apr | M10: 59.06 | N10: 25.01 | O10: 141.42 | P10: 25.09 | Q10: 33.09 | S10: Mean: for 10-min and daily periods use average of all operational combustion lines.
A11: May | B11: 150 | C11: 95.72 | D11: 25.34 | E11: 324.42 | F11: 50 | G11: 25.39 | H11: 44.61 | L11: May | M11: 95.72 | N11: 27.04 | O11: 138.5 | P11: 27.13 | Q11: 42.75
A12: Jun | B12: 150 | C12: 94.06 | D12: 27.31 | E12: 495.11 | F12: 50 | G12: 26.83 | H12: 47.29 | L12: Jun | M12: 78.33 | N12: 28.66 | O12: 264.38 | P12: 28.39 | Q12: 38.58
A13: Jul | B13: 150 | C13: 91.59 | D13: 24.85 | E13: 485.58 | F13: 50 | G13: 24.58 | H13: 48.01 | L13: Jul | M13: 90.85 | N13: 31.08 | O13: 485.58 | P13: 30.69 | Q13: 41.21 | S13: Maximum: for 10-min and daily periods use the highest of all operational combustion lines in any month.
A14: Aug | B14: 150 | C14: 44.42 | D14: 19.35 | E14: 261.9 | F14: 50 | G14: 19.29 | H14: 29.42 | L14: Aug | M14: 41.11 | N14: 22.7 | O14: 261.9 | P14: 22.8 | Q14: 29.42
A15: Sep | B15: 150 | C15: 60.72 | D15: 19.92 | E15: 511.76 | F15: 50 | G15: 19.97 | H15: 31.88 | L15: Sep | M15: 56.96 | N15: 23 | O15: 116.21 | P15: 23.06 | Q15: 29.51
A16: Oct | B16: 150 | C16: 63.9 | D16: 19.58 | E16: 361.88 | F16: 50 | G16: 19.58 | H16: 36.05 | L16: Oct | M16: 61.36 | N16: 19.98 | O16: 241.86 | P16: 19.99 | Q16: 26.84
A17: Nov | B17: 150 | C17: 71.7 | D17: 26.95 | E17: 260.55 | F17: 50 | G17: 27.1 | H17: 45.07 | L17: Nov | M17: 71.7 | N17: 30.79 | O17: 213.63 | P17: 30.88 | Q17: 45.07
A18: Dec | B18: 150 | C18: 69.44 | D18: 23.84 | E18: 408.26 | F18: 50 | G18: 23.76 | H18: 47.71 | L18: Dec | M18: 69.44 | N18: 30.57 | O18: 181.4 | P18: 30.49 | Q18: 47.71
L19: Annual | M19: =MAX(M7:M18) -> 95.72 | N19: =AVERAGE(N7:N18) -> 26.3825 | O19: =MAX(O7:O18) -> 485.58 | P19: =AVERAGE(P7:P18) -> 26.3625 | Q19: =MAX(Q7:Q18) -> 47.71
K21: =+A6 -> 2020 | L21: mg/Nm3 | M21: 95%ile 10-min avg maximum | N21: Monthly CO 10-min avg mean | O21: 10-min avg maximum | P21: Monthly daily mean | Q21: Monthly daily maximum
K22: A2 | L22: Jan | M22: 75.52 | N22: 31.78 | O22: 137.38 | P22: 31.87 | Q22: 46.97
L23: Feb | M23: 49.44 | N23: 21.03 | O23: 102.21 | P23: 21.06 | Q23: 25.3
L24: Mar | M24: 58.35 | N24: 23.88 | O24: 141.91 | P24: 23.88 | Q24: 31.3
L25: Apr | M25: 102 | N25: 25.64 | O25: 180.41 | P25: 25.64 | Q25: 36.05
L26: May | M26: 66.11 | N26: 31.15 | O26: 201.33 | P26: 31.14 | Q26: 44.61
L27: Jun | M27: 94.06 | N27: 34.2 | O27: 495.11 | P27: 33.83 | Q27: 47.29
L28: Jul | M28: 91.59 | N28: 28.35 | O28: 334.08 | P28: 28.9 | Q28: 48.01
L29: Aug | M29: 44.42 | N29: 15.75 | O29: 151.19 | P29: 15.75 | Q29: 23.84
L30: Sep | M30: 60.72 | N30: 21.16 | O30: 511.76 | P30: 21.15 | Q30: 31.88
L31: Oct | M31: 63.9 | N31: 23.05 | O31: 287.04 | P31: 23.08 | Q31: 32.93
L32: Nov | M32: 70.37 | N32: 29.79 | O32: 260.55 | P32: 29.83 | Q32: 40.2
L33: Dec | M33: 67.54 | N33: 30.67 | O33: 408.26 | P33: 30.96 | Q33: 39.17
L34: Annual | M34: =MAX(M22:M33) -> 102 | N34: =AVERAGE(N22:N33) -> 26.37083333 | O34: =MAX(O22:O33) -> 511.76 | P34: =AVERAGE(P22:P33) -> 26.42416667 | Q34: =MAX(Q22:Q33) -> 48.01
K36: =+A6 -> 2020 | L36: mg/Nm3 | M36: 95%ile 10-min avg maximum | N36: Monthly CO 10-min avg mean | O36: 10-min avg maximum | P36: Monthly daily mean | Q36: Monthly daily maximum
K37: A3 | L37: Jan | M37: 33.74 | N37: 18.06 | O37: 146.01 | P37: 17.85 | Q37: 22.8
L38: Feb | M38: 53.15 | N38: 19.93 | O38: 193.62 | P38: 19.93 | Q38: 25.21
L39: Mar | M39: 42.18 | N39: 19.85 | O39: 155.76 | P39: 19.84 | Q39: 25.68
L40: Apr | M40: 41.39 | N40: 17.29 | O40: 208.36 | P40: 17.16 | Q40: 21.34
L41: May | M41: 35.37 | N41: 17.79 | O41: 324.42 | P41: 17.7 | Q41: 23.02
L42: Jun | M42: 67.88 | N42: 19.5 | O42: 212.3 | P42: 19.06 | Q42: 25.79
L43: Jul | M43: 47.73 | N43: 16.59 | O43: 478.51 | P43: 16.59 | Q43: 23.84
L44: Aug | M44: 42.79 | N44: 19.66 | O44: 130.7 | P44: 19.45 | Q44: 25.86
L45: Sep | M45: 44.75 | N45: 16.42 | O45: 431.05 | P45: 16.51 | Q45: 29.08
L46: Oct | M46: 55.92 | N46: 15.7 | O46: 361.88 | P46: 15.69 | Q46: 36.05
L47: Nov | M47: 29.98 | N47: 10.32 | O47: 199.16 | P47: 10.16 | Q47: 13.48
A48: Comments : | L48: Dec | M48: 26.13 | N48: 10.97 | O48: 135.43 | P48: 10.97 | Q48: 17.99
A49: Environment Agency explanatory note: The 10-minute average ELV is based on the “95th percentile”. In this case this means that 95% of the 10 minute averages in the relevant 24-hour period (i.e. 137) must be below 150 mg/Nm3, and 5% (i.e. 7) are allowed to be any value above 150 mg/Nm3. Whilst we expect operators to minimise CO emissions at all times, it is perfectly acceptable for the value of the maximum 10-minute average to be above 150 mg/Nm3, provided the 95th percentile ELV has been met for that period. | L49: Annual | M49: =MAX(M37:M48) -> 67.88 | N49: =AVERAGE(N37:N48) -> 16.84 | O49: =MAX(O37:O48) -> 478.51 | P49: =AVERAGE(P37:P48) -> 16.7425 | Q49: =MAX(Q37:Q48) -> 36.05
K51: =+A6 -> 2020 | L51: mg/Nm3 | M51: 95%ile 10-min avg maximum | N51: Monthly CO 10-min avg mean | O51: 10-min avg maximum | P51: Monthly daily mean | Q51: Monthly daily maximum
K52: A4 | L52: Jan
L53: Feb
L54: Mar
L55: Apr
L56: May
L57: Jun
L58: Jul
L59: Aug
L60: Sep
L61: Oct
L62: Nov
L63: Dec
L64: Annual | M64: =AVERAGE(M52:M63) ->  | O64: =MAX(O52:O63) -> 0 | P64: =AVERAGE(P52:P63) ->  | Q64: =MAX(Q52:Q63) -> 0
K66: =+A6 -> 2020 | L66: mg/Nm3 | M66: 95%ile 10-min avg maximum | N66: Monthly CO 10-min avg mean | O66: 10-min avg maximum | P66: Monthly daily mean | Q66: Monthly daily maximum
K67: A5 | L67: Jan
L68: Feb
L69: Mar
L70: Apr
L71: May
L72: Jun
L73: Jul
L74: Aug
L75: Sep
L76: Oct
L77: Nov
L78: Dec
L79: Annual | M79: =AVERAGE(M67:M78) ->  | O79: =MAX(O67:O78) -> 0 | P79: =AVERAGE(P67:P78) ->  | Q79: =MAX(Q67:Q78) -> 0

Sheet NH3
A1: =+'Cover Page'!$B$29 -> Annual Performance Report 2021 | E1: =+'Cover Page'!$B$33 -> The Coventry And Solihull Waste Disposal Company Ltd
A3: Monitoring of Ammnonia emissions | D3: Whole Installation | G3: See Notes in Cell Q3 | J3: =+A3 -> Monitoring of Ammnonia emissions | N3: Per Combustion Line | Q3: Notes:
Q4: User to add logic to complete Whole installation, Table A5:G18. From the data in Per Combustion Line, Table J6:O79, subject to No. of lines installed
A5: mg/Nm3 | B5: 1/2 Hourly Reference Periods | E5: Daily Reference Periods
A6: =+'Cover Page'!C39 -> 2020 | B6: 1/2 hourly NH3 ELV | C6: Monthly 1/2 hourly mean | D6: Highest 1/2 hourly maximum | E6: Daily NH3 ELV | F6: Monthly daily mean | G6: Highest daily maximum | J6: =+A6 -> 2020 | K6: mg/Nm3 | L6: Monthly 1/2 hourly mean | M6: Monthly 1/2 hourly maximum | N6: Monthly daily mean | O6: Monthly daily maximum
A7: Jan | B7: 0 | C7: 4.74 | D7: 27.55 | E7: 0 | F7: 4.75 | G7: 9.82 | J7: A1 | K7: Jan | L7: 4.58 | M7: 22.47 | N7: 4.58 | O7: 6.12
A8: Feb | B8: 0 | C8: 5.94 | D8: 39.63 | E8: 0 | F8: 6.01 | G8: 13.89 | K8: Feb | L8: 5.74 | M8: 19.64 | N8: 5.88 | O8: 13.89
A9: Mar | B9: 0 | C9: 5.51 | D9: 23.58 | E9: 0 | F9: 5.58 | G9: 10.89 | K9: Mar | L9: 5.23 | M9: 23.58 | N9: 5.51 | O9: 10.59 | Q9: Whole Installation table A5:G18:
A10: Apr | B10: 0 | C10: 4.25 | D10: 25.98 | E10: 0 | F10: 4.26 | G10: 17.12 | K10: Apr | L10: 2.98 | M10: 16.28 | N10: 2.95 | O10: 8.81 | Q10: Mean: for 1/2 hourly and daily periods calculate mean of values across all operational combustion lines for the month
A11: May | B11: 0 | C11: 4.57 | D11: 22.05 | E11: 0 | F11: 4.58 | G11: 10.04 | K11: May | L11: 2.75 | M11: 12.15 | N11: 2.75 | O11: 4.8
A12: Jun | B12: 0 | C12: 6.8 | D12: 24.1 | E12: 0 | F12: 6.81 | G12: 13.85 | K12: Jun | L12: 4.49 | M12: 24.1 | N12: 4.59 | O12: 12.17
A13: Jul | B13: 0 | C13: 4.87 | D13: 32.99 | E13: 0 | F13: 4.93 | G13: 19.09 | K13: Jul | L13: 3.36 | M13: 15.37 | N13: 3.37 | O13: 4.8 | Q13: Maximum: for 1/2 hourly and daily periods use the highest value across all operational combustion lines for the month
A14: Aug | B14: 0 | C14: 5.95 | D14: 32.24 | E14: 0 | F14: 6 | G14: 15.05 | K14: Aug | L14: 4.14 | M14: 16.56 | N14: 4.12 | O14: 7.61
A15: Sep | B15: 0 | C15: 6.05 | D15: 20.77 | E15: 0 | F15: 6.13 | G15: 15.95 | K15: Sep | L15: 6.18 | M15: 17.75 | N15: 6.25 | O15: 13.61
A16: Oct | B16: 0 | C16: 5.15 | D16: 20.52 | E16: 0 | F16: 5.14 | G16: 11.04 | K16: Oct | L16: 6.2 | M16: 20.52 | N16: 6.19 | O16: 11.04
A17: Nov | B17: 0 | C17: 6.73 | D17: 25.39 | E17: 0 | F17: 6.8 | G17: 16.48 | K17: Nov | L17: 9.18 | M17: 20.83 | N17: 9.27 | O17: 16.48
A18: Dec | B18: 0 | C18: 4.61 | D18: 26.19 | E18: 0 | F18: 4.56 | G18: 14.16 | K18: Dec | L18: 5.35 | M18: 19.29 | N18: 5.3 | O18: 14.16
K19: Annual | L19: =AVERAGE(L7:L18) -> 5.015 | M19: =MAX(M7:M18) -> 24.1 | N19: =AVERAGE(N7:N18) -> 5.063333333 | O19: =MAX(O7:O18) -> 16.48
J21: =+A6 -> 2020 | K21: mg/Nm3 | L21: Monthly 1/2 hourly mean | M21: Monthly 1/2 hourly maximum | N21: Monthly daily mean | O21: Monthly daily maximum
J22: A2 | K22: Jan | L22: 7.11 | M22: 27.55 | N22: 7.08 | O22: 9.82
K23: Feb | L23: 8.76 | M23: 39.63 | N23: 8.9 | O23: 11.5
K24: Mar | L24: 7.5 | M24: 22.57 | N24: 7.5 | O24: 10.89
K25: Apr | L25: 6.77 | M25: 25.98 | N25: 6.77 | O25: 17.12
K26: May | L26: 7.04 | M26: 22.05 | N26: 7.04 | O26: 10.04
K27: Jun | L27: 10.91 | M27: 22.98 | N27: 10.96 | O27: 13.85
K28: Jul | L28: 10.14 | M28: 32.99 | N28: 10.29 | O28: 19.09
K29: Aug | L29: 11.32 | M29: 32.24 | N29: 11.32 | O29: 15.05
K30: Sep | L30: 10.66 | M30: 20.77 | N30: 10.66 | O30: 15.95
K31: Oct | L31: 7.2 | M31: 20.41 | N31: 7.2 | O31: 10.07
K32: Nov | L32: 6.14 | M32: 25.39 | N32: 6.16 | O32: 11.58
K33: Dec | L33: 6.43 | M33: 26.19 | N33: 6.42 | O33: 13.65
K34: Annual | L34: =AVERAGE(L22:L33) -> 8.331666667 | M34: =MAX(M22:M33) -> 39.63 | N34: =AVERAGE(N22:N33) -> 8.358333333 | O34: =MAX(O22:O33) -> 19.09
J36: =+A6 -> 2020 | K36: mg/Nm3 | L36: Monthly 1/2 hourly mean | M36: Monthly 1/2 hourly maximum | N36: Monthly daily mean | O36: Monthly daily maximum
J37: A3 | K37: Jan | L37: 3.23 | M37: 13.56 | N37: 3.3 | O37: 9.49
K38: Feb | L38: 3.42 | M38: 7.77 | N38: 3.42 | O38: 5.77
K39: Mar | L39: 3.71 | M39: 16.04 | N39: 3.71 | O39: 5.86
K40: Apr | L40: 2.63 | M40: 11.52 | N40: 2.55 | O40: 5.16
K41: May | L41: 3.92 | M41: 12.33 | N41: 3.87 | O41: 7.44
K42: Jun | L42: 5.15 | M42: 11.72 | N42: 5.14 | O42: 7.53
K43: Jul | L43: 2.39 | M43: 11.91 | N43: 2.39 | O43: 3.72
K44: Aug | L44: 2.3 | M44: 12.54 | N44: 2.27 | O44: 6.23
K45: Sep | L45: 1.33 | M45: 8.25 | N45: 1.36 | O45: 3.83
K46: Oct | L46: 2.04 | M46: 11.21 | N46: 2.04 | O46: 7.56
K47: Nov | L47: 1.89 | M47: 6.56 | N47: 1.91 | O47: 2.78
A48: Comments : | K48: Dec | L48: 2.18 | M48: 11.88 | N48: 2.18 | O48: 3.51
A49: An indicated ELV value of zero in the table above means that no ammonia limit is set in the permit. | K49: Annual | L49: =AVERAGE(L37:L48) -> 2.849166667 | M49: =MAX(M37:M48) -> 16.04 | N49: =AVERAGE(N37:N48) -> 2.845 | O49: =MAX(O37:O48) -> 9.49
J51: =+A6 -> 2020 | K51: mg/Nm3 | L51: Monthly 1/2 hourly mean | M51: Monthly 1/2 hourly maximum | N51: Monthly daily mean | O51: Monthly daily maximum
J52: A4 | K52: Jan
K53: Feb
K54: Mar
K55: Apr
K56: May
K57: Jun
K58: Jul
K59: Aug
K60: Sep
K61: Oct
K62: Nov
K63: Dec
K64: Annual | L64: =AVERAGE(L52:L63) ->  | M64: =MAX(M52:M63) -> 0 | N64: =AVERAGE(N52:N63) ->  | O64: =MAX(O52:O63) -> 0
J66: =+A6 -> 2020 | K66: mg/Nm3 | L66: Monthly 1/2 hourly mean | M66: Monthly 1/2 hourly maximum | N66: Monthly daily mean | O66: Monthly daily maximum
J67: A5 | K67: Jan
K68: Feb
K69: Mar
K70: Apr
K71: May
K72: Jun
K73: Jul
K74: Aug
K75: Sep
K76: Oct
K77: Nov
K78: Dec
K79: Annual | L79: =AVERAGE(L67:L78) ->  | M79: =MAX(M67:M78) -> 0 | N79: =AVERAGE(N67:N78) ->  | O79: =MAX(O67:O78) -> 0
